Workbook

Sheet Avantages perçus
A1: Bénéficiaire | B1: Type de bénéficiaire | C1: Entreprise | D1: Date | E1: Nature | F1: Montant
A2: DÉCISION & STRATÉGIE SANTÉ | B2: Presse et média | C2: LABORATOIRE GLAXOSMITHKLINE | D2: 2013-09-12 | E2: REPAS | F2: 29
A3: DÉCISION & STRATÉGIE SANTÉ | B3: Presse et média | C3: EDITION DE L'INTERLIGNE | D3: 2013-12-11 | E3: HOSPITALITE | F3: 60
A4: DÉCISION & STRATÉGIE SANTÉ | B4: Presse et média | C4: EDITION DE L'INTERLIGNE | D4: 2013-12-11 | E4: HOSPITALITE | F4: 60
A5: DÉCISION & STRATÉGIE SANTÉ | B5: Presse et média | C5: EDITION DE L'INTERLIGNE | D5: 2013-12-11 | E5: HOSPITALITE | F5: 60
A6: DÉCISION & STRATÉGIE SANTÉ | B6: Presse et média | C6: EDITION DE L'INTERLIGNE | D6: 17/12/2013 | E6: HOSPITALITE | F6: 60
A7: DÉCISION & STRATÉGIE SANTÉ | B7: Presse et média | C7: EDITION DE L'INTERLIGNE | D7: 17/12/2013 | E7: HOSPITALITE | F7: 60
A8: DÉCISION & STRATÉGIE SANTÉ | B8: Presse et média | C8: EDITION DE L'INTERLIGNE | D8: 17/12/2013 | E8: HOSPITALITE | F8: 60
A9: DÉCISION & STRATÉGIE SANTÉ | B9: Presse et média | C9: EDITION DE L'INTERLIGNE | D9: 2014-02-12 | E9: HOSPITALITE | F9: 60
A10: DÉCISION & STRATÉGIE SANTÉ | B10: Presse et média | C10: EDITION DE L'INTERLIGNE | D10: 2014-02-12 | E10: HOSPITALITE | F10: 60
A11: DÉCISION & STRATÉGIE SANTÉ | B11: Presse et média | C11: EDITION DE L'INTERLIGNE | D11: 2014-02-12 | E11: HOSPITALITE | F11: 60
A12: DÉCISION & STRATÉGIE SANTÉ | B12: Presse et média | C12: EDITION DE L'INTERLIGNE | D12: 2014-02-12 | E12: HOSPITALITE | F12: 60
A13: DÉCISION & STRATÉGIE SANTÉ | B13: Presse et média | C13: EDITION DE L'INTERLIGNE | D13: 2014-02-12 | E13: HOSPITALITE | F13: 60
A14: DÉCISION & STRATÉGIE SANTÉ | B14: Presse et média | C14: EDITION DE L'INTERLIGNE | D14: 2014-02-12 | E14: HOSPITALITE | F14: 60
A15: DÉCISION & STRATÉGIE SANTÉ | B15: Presse et média | C15: EDITION DE L'INTERLIGNE | D15: 2014-04-07 | E15: HOSPITALITE | F15: 60
A16: DÉCISION & STRATÉGIE SANTÉ | B16: Presse et média | C16: EDITION DE L'INTERLIGNE | D16: 2014-04-07 | E16: HOSPITALITE | F16: 60
A17: DÉCISION & STRATÉGIE SANTÉ | B17: Presse et média | C17: EDITION DE L'INTERLIGNE | D17: 2014-04-07 | E17: HOSPITALITE | F17: 60
A18: DÉCISION & STRATÉGIE SANTÉ | B18: Presse et média | C18: EDITION DE L'INTERLIGNE | D18: 17/04/2014 | E18: HOSPITALITE | F18: 60
A19: DÉCISION & STRATÉGIE SANTÉ | B19: Presse et média | C19: EDITION DE L'INTERLIGNE | D19: 17/04/2014 | E19: HOSPITALITE | F19: 60
A20: DÉCISION & STRATÉGIE SANTÉ | B20: Presse et média | C20: EDITION DE L'INTERLIGNE | D20: 17/04/2014 | E20: HOSPITALITE | F20: 60
A21: DÉCISION & STRATÉGIE SANTÉ | B21: Presse et média | C21: EDITION DE L'INTERLIGNE | D21: 2014-06-10 | E21: HOSPITALITE | F21: 60
A22: DÉCISION & STRATÉGIE SANTÉ | B22: Presse et média | C22: EDITION DE L'INTERLIGNE | D22: 2014-06-10 | E22: HOSPITALITE | F22: 60
A23: DÉCISION & STRATÉGIE SANTÉ | B23: Presse et média | C23: EDITION DE L'INTERLIGNE | D23: 2014-06-10 | E23: HOSPITALITE | F23: 60
A24: DÉCISION & STRATÉGIE SANTÉ | B24: Presse et média | C24: EDITION DE L'INTERLIGNE | D24: 2014-06-10 | E24: HOSPITALITE | F24: 60
A25: DÉCISION & STRATÉGIE SANTÉ | B25: Presse et média | C25: EDITION DE L'INTERLIGNE | D25: 2014-06-10 | E25: HOSPITALITE | F25: 60
A26: DÉCISION & STRATÉGIE SANTÉ | B26: Presse et média | C26: EDITION DE L'INTERLIGNE | D26: 2014-06-10 | E26: HOSPITALITE | F26: 60
A27: DÉCISION & STRATÉGIE SANTÉ | B27: Presse et média | C27: EDITION DE L'INTERLIGNE | D27: 2014-07-01 | E27: HOSPITALITE | F27: 60
A28: DÉCISION & STRATÉGIE SANTÉ | B28: Presse et média | C28: EDITION DE L'INTERLIGNE | D28: 2014-07-01 | E28: HOSPITALITE | F28: 60
A29: DÉCISION & STRATÉGIE SANTÉ | B29: Presse et média | C29: EDITION DE L'INTERLIGNE | D29: 2014-07-01 | E29: HOSPITALITE | F29: 60
A30: DÉCISION & STRATÉGIE SANTÉ | B30: Presse et média | C30: Bayer HealthCare SAS | D30: 2014-09-02 | E30: Hospitalité | F30: 471
A31: DÉCISION & STRATÉGIE SANTÉ | B31: Presse et média | C31: LABORATOIRE GLAXOSMITHKLINE | D31: 2014-09-09 | E31: REPAS | F31: 17
A32: DÉCISION & STRATÉGIE SANTÉ | B32: Presse et média | C32: EDITION DE L'INTERLIGNE | D32: 2014-10-07 | E32: HOSPITALITE | F32: 60
A33: DÉCISION & STRATÉGIE SANTÉ | B33: Presse et média | C33: EDITION DE L'INTERLIGNE | D33: 2014-10-07 | E33: HOSPITALITE | F33: 60
A34: DÉCISION & STRATÉGIE SANTÉ | B34: Presse et média | C34: EDITION DE L'INTERLIGNE | D34: 2014-10-07 | E34: HOSPITALITE | F34: 60
A35: DÉCISION & STRATÉGIE SANTÉ | B35: Presse et média | C35: EDITION DE L'INTERLIGNE | D35: 2014-10-07 | E35: HOSPITALITE | F35: 60
A36: DÉCISION & STRATÉGIE SANTÉ | B36: Presse et média | C36: EDITION DE L'INTERLIGNE | D36: 2014-10-07 | E36: HOSPITALITE | F36: 60
A37: DÉCISION & STRATÉGIE SANTÉ | B37: Presse et média | C37: EDITION DE L'INTERLIGNE | D37: 2014-10-07 | E37: HOSPITALITE | F37: 60
A38: DÉCISION & STRATÉGIE SANTÉ | B38: Presse et média | C38: EDITION DE L'INTERLIGNE | D38: 2014-10-07 | E38: HOSPITALITE | F38: 60
A39: DÉCISION & STRATÉGIE SANTÉ | B39: Presse et média | C39: EDITION DE L'INTERLIGNE | D39: 2014-10-07 | E39: HOSPITALITE | F39: 60
A40: DÉCISION & STRATÉGIE SANTÉ | B40: Presse et média | C40: EDITION DE L'INTERLIGNE | D40: 2014-10-07 | E40: HOSPITALITE | F40: 60
A41: DÉCISION & STRATÉGIE SANTÉ | B41: Presse et média | C41: EDITION DE L'INTERLIGNE | D41: 2014-10-07 | E41: HOSPITALITE | F41: 60
A42: DÉCISION & STRATÉGIE SANTÉ | B42: Presse et média | C42: EDITION DE L'INTERLIGNE | D42: 2014-10-07 | E42: HOSPITALITE | F42: 60
A43: DÉCISION & STRATÉGIE SANTÉ | B43: Presse et média | C43: EDITION DE L'INTERLIGNE | D43: 2014-10-07 | E43: HOSPITALITE | F43: 60
A44: DÉCISION & STRATÉGIE SANTÉ | B44: Presse et média | C44: MSD France | D44: 28/10/2014 | E44: REPAS | F44: 12
A45: DÉCISION & STRATÉGIE SANTÉ | B45: Presse et média | C45: EDITION DE L'INTERLIGNE | D45: 27/11/2014 | E45: HOSPITALITE | F45: 66
A46: DÉCISION & STRATÉGIE SANTÉ | B46: Presse et média | C46: EDITION DE L'INTERLIGNE | D46: 27/11/2014 | E46: HOSPITALITE | F46: 66
A47: DÉCISION & STRATÉGIE SANTÉ | B47: Presse et média | C47: EDITION DE L'INTERLIGNE | D47: 27/11/2014 | E47: HOSPITALITE | F47: 66
A48: DÉCISION & STRATÉGIE SANTÉ | B48: Presse et média | C48: EDITION DE L'INTERLIGNE | D48: 27/11/2014 | E48: HOSPITALITE | F48: 66
A49: DÉCISION & STRATÉGIE SANTÉ | B49: Presse et média | C49: EDITION DE L'INTERLIGNE | D49: 27/11/2014 | E49: HOSPITALITE | F49: 66
A50: DÉCISION & STRATÉGIE SANTÉ | B50: Presse et média | C50: EDITION DE L'INTERLIGNE | D50: 27/11/2014 | E50: HOSPITALITE | F50: 66
A51: DÉCISION & STRATÉGIE SANTÉ | B51: Personnes morales assurant la formation initiale ou continue des professionnels de santé | C51: ARCHIMEDES PHARMA France | D51: 2014-12-02 | E51: Dons de fonctionnement | F51: 2400
A52: DÉCISION & STRATÉGIE SANTÉ | B52: Presse et média | C52: SESC | D52: 2015-05-11 | E52: HOSPITALITE | F52: 60
A53: DÉCISION & STRATÉGIE SANTÉ | B53: Presse et média | C53: SESC | D53: 2015-05-11 | E53: HOSPITALITE | F53: 60
A54: DÉCISION & STRATÉGIE SANTÉ | B54: Presse et média | C54: SESC | D54: 2015-05-11 | E54: HOSPITALITE | F54: 60
A55: DÉCISION & STRATÉGIE SANTÉ | B55: Presse et média | C55: SESC | D55: 26/11/2015 | E55: HOSPITALITE | F55: 60
A56: DÉCISION & STRATÉGIE SANTÉ | B56: Presse et média | C56: SESC | D56: 26/11/2015 | E56: HOSPITALITE | F56: 60
A57: DÉCISION & STRATÉGIE SANTÉ | B57: Presse et média | C57: SESC | D57: 26/11/2015 | E57: HOSPITALITE | F57: 60
A58: DÉCISION & STRATÉGIE SANTÉ | B58: Presse et média | C58: SESC | D58: 26/11/2015 | E58: HOSPITALITE | F58: 60
A59: DÉCISION & STRATÉGIE SANTÉ | B59: Presse et média | C59: SESC | D59: 26/11/2015 | E59: HOSPITALITE | F59: 60
A60: DÉCISION & STRATÉGIE SANTÉ | B60: Presse et média | C60: SESC | D60: 26/11/2015 | E60: HOSPITALITE | F60: 60
A61: DÉCISION & STRATÉGIE SANTÉ | B61: Presse et média | C61: SESC | D61: 26/11/2015 | E61: HOSPITALITE | F61: 60
A62: DÉCISION & STRATÉGIE SANTÉ | B62: Presse et média | C62: SESC | D62: 26/11/2015 | E62: HOSPITALITE | F62: 60
A63: DÉCISION & STRATÉGIE SANTÉ | B63: Presse et média | C63: SESC | D63: 2016-03-08 | E63: HOSPITALITE | F63: 60
A64: DÉCISION & STRATÉGIE SANTÉ | B64: Presse et média | C64: SESC | D64: 2016-03-08 | E64: HOSPITALITE | F64: 60
A65: DÉCISION & STRATÉGIE SANTÉ | B65: Presse et média | C65: SESC | D65: 2016-03-08 | E65: HOSPITALITE | F65: 60
A66: DÉCISION & STRATÉGIE SANTÉ | B66: Presse et média | C66: MSD France | D66: 24/03/2016 | E66: REPAS | F66: 11
A67: DÉCISION & STRATÉGIE SANTÉ | B67: Presse et média | C67: MSD France | D67: 2016-04-11 | E67: REPAS | F67: 19
A68: DÉCISION & STRATÉGIE SANTÉ | B68: Presse et média | C68: SESC | D68: 2016-10-04 | E68: HOSPITALITE | F68: 60
A69: DÉCISION & STRATÉGIE SANTÉ | B69: Presse et média | C69: SESC | D69: 2016-10-04 | E69: HOSPITALITE | F69: 60
A70: DÉCISION & STRATÉGIE SANTÉ | B70: Presse et média | C70: SESC | D70: 2016-10-04 | E70: HOSPITALITE | F70: 60
A71: DÉCISION & STRATÉGIE SANTÉ | B71: Presse et média | C71: SESC | D71: 2016-10-04 | E71: HOSPITALITE | F71: 60
A72: DÉCISION & STRATÉGIE SANTÉ | B72: Presse et média | C72: SESC | D72: 2016-10-04 | E72: HOSPITALITE | F72: 60
A73: DÉCISION & STRATÉGIE SANTÉ | B73: Presse et média | C73: SESC | D73: 2016-10-04 | E73: HOSPITALITE | F73: 60
A74: DÉCISION & STRATÉGIE SANTÉ | B74: Presse et média | C74: SESC | D74: 2016-10-04 | E74: HOSPITALITE | F74: 60
A75: DÉCISION & STRATÉGIE SANTÉ | B75: Presse et média | C75: SESC | D75: 2016-10-04 | E75: HOSPITALITE | F75: 60
A76: DÉCISION & STRATÉGIE SANTÉ | B76: Presse et média | C76: SESC | D76: 2016-10-04 | E76: HOSPITALITE | F76: 60
A77: DÉCISION & STRATÉGIE SANTÉ | B77: Presse et média | C77: SESC | D77: 2016-10-04 | E77: HOSPITALITE | F77: 60
A78: DÉCISION & STRATÉGIE SANTÉ | B78: Presse et média | C78: EDITION DE L'INTERLIGNE | D78: 30/06/2017 | E78: REPAS | F78: 50
A79: DÉCISION & STRATÉGIE SANTÉ | B79: Presse et média | C79: EDITION DE L'INTERLIGNE | D79: 30/06/2017 | E79: REPAS | F79: 12
A80: DÉCISION & STRATÉGIE SANTÉ | B80: Presse et média | C80: EDITION DE L'INTERLIGNE | D80: 30/06/2017 | E80: REPAS | F80: 50
A81: DÉCISION & STRATÉGIE SANTÉ | B81: Presse et média | C81: EDITION DE L'INTERLIGNE | D81: 30/06/2017 | E81: REPAS | F81: 12
A82: DÉCISION & STRATÉGIE SANTÉ | B82: Presse et média | C82: EDITION DE L'INTERLIGNE | D82: 30/06/2017 | E82: REPAS | F82: 50
A83: DÉCISION & STRATÉGIE SANTÉ | B83: Presse et média | C83: EDITION DE L'INTERLIGNE | D83: 30/06/2017 | E83: REPAS | F83: 12
A84: DÉCISION & STRATÉGIE SANTÉ | B84: Presse et média | C84: EDITION DE L'INTERLIGNE | D84: 30/06/2017 | E84: REPAS | F84: 50
A85: DÉCISION & STRATÉGIE SANTÉ | B85: Presse et média | C85: EDITION DE L'INTERLIGNE | D85: 30/06/2017 | E85: REPAS | F85: 12
A86: DÉCISION & STRATÉGIE SANTÉ | B86: Presse et média | C86: EDITION DE L'INTERLIGNE | D86: 30/06/2017 | E86: REPAS | F86: 50
A87: DÉCISION & STRATÉGIE SANTÉ | B87: Presse et média | C87: EDITION DE L'INTERLIGNE | D87: 30/06/2017 | E87: REPAS | F87: 12
A88: QUOTIDIEN DU MÉDECIN | B88: Presse et média | C88: MSD France | D88: 2013-02-05 | E88: REPAS | F88: 60
A89: QUOTIDIEN DU MÉDECIN | B89: Presse et média | C89: MSD France | D89: 2013-02-05 | E89: REPAS | F89: 60
A90: QUOTIDIEN DU MÉDECIN | B90: Presse et média | C90: MSD France | D90: 2013-04-06 | E90: REPAS | F90: 67
A91: QUOTIDIEN DU MÉDECIN | B91: Presse et média | C91: MSD France | D91: 19/04/2013 | E91: REPAS | F91: 35
A92: QUOTIDIEN DU MÉDECIN | B92: Presse et média | C92: Bayer HealthCare SAS | D92: 2013-09-09 | E92: Hospitalité | F92: 478
A93: QUOTIDIEN DU MÉDECIN | B93: Presse et média | C93: MSD France | D93: 2014-04-11 | E93: AUTRE : REMUNERATION | F93: 27870
A94: QUOTIDIEN DU MÉDECIN | B94: Presse et média | C94: Bayer HealthCare SAS | D94: 27/06/2014 | E94: Hospitalité | F94: 924
A95: QUOTIDIEN DU MÉDECIN | B95: Presse et média | C95: MSD France | D95: 18/09/2014 | E95: REPAS | F95: 32
A96: QUOTIDIEN DU MÉDECIN | B96: Presse et média | C96: MSD France | D96: 18/09/2014 | E96: TRANSPORT | F96: 1485
A97: QUOTIDIEN DU MÉDECIN | B97: Presse et média | C97: MSD France | D97: 18/09/2014 | E97: TRANSPORT | F97: 16
A98: QUOTIDIEN DU MÉDECIN | B98: Presse et média | C98: MSD France | D98: 18/09/2014 | E98: TRANSPORT | F98: 78
A99: QUOTIDIEN DU MÉDECIN | B99: Presse et média | C99: MSD France | D99: 18/09/2014 | E99: HÉBERGEMENT | F99: 207
A100: QUOTIDIEN DU MÉDECIN | B100: Presse et média | C100: MSD France | D100: 18/09/2014 | E100: TRANSPORT | F100: 31
A101: QUOTIDIEN DU MÉDECIN | B101: Presse et média | C101: MSD France | D101: 18/11/2014 | E101: REPAS | F101: 49
A102: QUOTIDIEN DU MÉDECIN | B102: Presse et média | C102: MSD France | D102: 18/11/2014 | E102: REPAS | F102: 49
A103: QUOTIDIEN DU MÉDECIN | B103: Presse et média | C103: Cyberonics BVBA | D103: 2015-02-06 | E103: Repas | F103: 20
A104: QUOTIDIEN DU MÉDECIN | B104: Presse et média | C104: Bayer HealthCare SAS | D104: 16/09/2015 | E104: Hospitalité | F104: 526
A105: QUOTIDIEN DU MÉDECIN | B105: Presse et média | C105: MSD France | D105: 15/03/2016 | E105: REPAS | F105: 28
A106: QUOTIDIEN DU MÉDECIN | B106: Presse et média | C106: MSD France | D106: 15/03/2016 | E106: REPAS | F106: 28
A107: QUOTIDIEN DU MÉDECIN | B107: Presse et média | C107: MSD France | D107: 15/03/2016 | E107: REPAS | F107: 28
A108: QUOTIDIEN DU MÉDECIN | B108: Presse et média | C108: MSD France | D108: 26/05/2016 | E108: REPAS | F108: 61
A109: QUOTIDIEN DU MÉDECIN | B109: Presse et média | C109: SESC | D109: 31/05/2016 | E109: HOSPITALITE | F109: 60
A110: QUOTIDIEN DU MÉDECIN | B110: Presse et média | C110: SESC | D110: 31/05/2016 | E110: HOSPITALITE | F110: 60
A111: QUOTIDIEN DU MÉDECIN | B111: Presse et média | C111: SESC | D111: 31/05/2016 | E111: HOSPITALITE | F111: 60
A112: QUOTIDIEN DU MÉDECIN | B112: Presse et média | C112: SESC | D112: 31/05/2016 | E112: HOSPITALITE | F112: 60
A113: QUOTIDIEN DU MÉDECIN | B113: Presse et média | C113: SESC | D113: 31/05/2016 | E113: HOSPITALITE | F113: 60
A114: QUOTIDIEN DU MÉDECIN | B114: Presse et média | C114: SESC | D114: 31/05/2016 | E114: HOSPITALITE | F114: 60
A115: QUOTIDIEN DU MÉDECIN | B115: Presse et média | C115: SESC | D115: 17/11/2016 | E115: HOSPITALITE | F115: 60
A116: QUOTIDIEN DU MÉDECIN | B116: Presse et média | C116: SESC | D116: 17/11/2016 | E116: HOSPITALITE | F116: 60
A117: QUOTIDIEN DU MÉDECIN | B117: Presse et média | C117: SESC | D117: 17/11/2016 | E117: HOSPITALITE | F117: 60
A118: QUOTIDIEN DU MÉDECIN | B118: Presse et média | C118: SESC | D118: 17/11/2016 | E118: HOSPITALITE | F118: 60
A119: SESC | B119: Presse et média | C119: SESC | D119: 2015-12-01 | E119: HOSPITALITE | F119: 60
A120: SESC | B120: Presse et média | C120: SESC | D120: 2015-12-01 | E120: HOSPITALITE | F120: 60
A121: SESC | B121: Presse et média | C121: SESC | D121: 2015-12-01 | E121: HOSPITALITE | F121: 60
A122: SESC | B122: Presse et média | C122: SESC | D122: 2015-12-01 | E122: HOSPITALITE | F122: 60
A123: SESC | B123: Presse et média | C123: SESC | D123: 2015-12-01 | E123: HOSPITALITE | F123: 60
A124: SESC | B124: Presse et média | C124: SESC | D124: 2015-12-01 | E124: HOSPITALITE | F124: 60
A125: SESC | B125: Presse et média | C125: SESC | D125: 29/03/2016 | E125: HOSPITALITE | F125: 60
A126: SESC | B126: Presse et média | C126: SESC | D126: 29/03/2016 | E126: HOSPITALITE | F126: 60
A127: SESC | B127: Presse et média | C127: SESC | D127: 29/03/2016 | E127: HOSPITALITE | F127: 60
A128: SESC | B128: Presse et média | C128: SESC | D128: 29/03/2016 | E128: HOSPITALITE | F128: 60
A129: SESC | B129: Presse et média | C129: SESC | D129: 29/03/2016 | E129: HOSPITALITE | F129: 60
A130: SESC | B130: Presse et média | C130: SESC | D130: 29/03/2016 | E130: HOSPITALITE | F130: 60
A131: SESC | B131: Presse et média | C131: LUNDBECK SAS | D131: 2016-10-01 | E131: AUTRE :REMUNERATION | F131: 150768
E133: Total | F133: =SUM(F2:F131) -> 191665
C135: 2ème semestre 2017 | F135: 0
C136: 1er semestre 2018 | F136: 0
C137: 12 derniers mois disponibles dans Transparence santé | F137: 0
C141: MSD France | F141: =SUMIF(C$2:C$131,"MSD France",F$2:F$131) -> 30226
C142: LUNDBECK SAS | F142: =SUMIF(C$2:C$131,"LUNDBECK SAS",F$2:F$131) -> 150768
C143: Bayer HealthCare SAS | F143: =SUMIF(C$2:C$131,"Bayer HealthCare SAS",F$2:F$131) -> 2399
C144: LABORATOIRE GLAXOSMITHKLINE | F144: =SUMIF(C$2:C$131,"LABORATOIRE GLAXOSMITHKLINE",F$2:F$131) -> 46
C146: SESC | F146: =SUMIF(C$2:C$131,"SESC",F$2:F$131) -> 2760
C147: EDITION DE L'INTERLIGNE | F147: =SUMIF(C$2:C$131,"EDITION DE L'INTERLIGNE",F$2:F$131) -> 3046

Sheet Conventions signées
A1: Bénéficiaire | B1: Type de bénéficiaire | C1: Entreprise | D1: Date | E1: Période | F1: Objet | G1: Montant | H1: Lieu
A2: QUOTIDIEN DU MÉDECIN | B2: Presse et média | C2: RB Pharmaceuticals France | D2: 01/01/2013 | E2: 01/01/2013 - | F2: Edition
A3: QUOTIDIEN DU MÉDECIN | B3: Presse et média | C3: SANDOZ | D3: 01/01/2013 | E3: 01/01/2013 - 30/06/2013 | F3: Edition
A4: QUOTIDIEN DU PHARMACIEN | B4: Presse et média | C4: SANDOZ | D4: 01/01/2013 | E4: 01/01/2013 - 30/06/2013 | F4: Edition
A5: QUOTIDIEN DU PHARMACIEN | B5: Presse et média | C5: RB Pharmaceuticals France | D5: 01/01/2013 | E5: 01/01/2013 - | F5: Edition
A6: QUOTIDIEN DU MÉDECIN | B6: Presse et média | C6: AbbVie | D6: 07/01/2013 | E6: 07/01/2013 - | F6: Autre : AUTRE : [MANIFESTATION]
A7: QUOTIDIEN DU MÉDECIN | B7: Presse et média | C7: AbbVie | D7: 10/01/2013 | E7: 10/01/2013 - | F7: Autre : AUTRE : [MANIFESTATION]
A8: QUOTIDIEN DU MÉDECIN | B8: Presse et média | C8: MYLAN SAS | D8: 17/01/2013 | E8: 17/01/2013 - | F8: Edition | G8: 209
A9: QUOTIDIEN DU MÉDECIN | B9: Presse et média | C9: MYLAN SAS | D9: 22/01/2013 | E9: 22/01/2013 - | F9: Edition | G9: 70
A10: QUOTIDIEN DU MÉDECIN | B10: Presse et média | C10: AbbVie | D10: 29/01/2013 | E10: 29/01/2013 - | F10: Autre : AUTRE : [MANIFESTATION]
A11: QUOTIDIEN DU MÉDECIN | B11: Presse et média | C11: MYLAN SAS | D11: 29/01/2013 | E11: 29/01/2013 - | F11: Edition | G11: 70
A12: QUOTIDIEN DU MÉDECIN | B12: Presse et média | C12: MYLAN SAS | D12: 29/01/2013 | E12: 29/01/2013 - | F12: Edition | G12: 70
A13: QUOTIDIEN DU MÉDECIN | B13: Presse et média | C13: MYLAN SAS | D13: 29/01/2013 | E13: 29/01/2013 - | F13: Edition | G13: 70
A14: QUOTIDIEN DU MÉDECIN | B14: Presse et média | C14: MYLAN SAS | D14: 29/01/2013 | E14: 29/01/2013 - | F14: Edition | G14: 70
A15: QUOTIDIEN DU MÉDECIN | B15: Presse et média | C15: AbbVie | D15: 30/01/2013 | E15: 30/01/2013 - | F15: Autre : AUTRE : [MANIFESTATION]
A16: QUOTIDIEN DU MÉDECIN | B16: Presse et média | C16: AbbVie | D16: 30/01/2013 | E16: 30/01/2013 - | F16: Autre : AUTRE : [MANIFESTATION]
A17: SESC | B17: Presse et média | C17: BIOGARAN | D17: 30/01/2013 | E17: 01/01/2013 - | F17: Autre : PUBLICITE
A18: QUOTIDIEN DU MÉDECIN | B18: Académies, Fondation, sociétés savantes, organismes de conseils | C18: Smith & Nephew S.A.S. | D18: 31/01/2013 | E18: 31/01/2013 - 11/02/2013 | F18: Autre : CONVENTION D'ACHAT : MARKETING / PUBLICITE / MEDIA
A19: QUOTIDIEN DU MÉDECIN | B19: Presse et média | C19: AbbVie | D19: 31/01/2013 | E19: 31/01/2013 - | F19: Autre : AUTRE : [MANIFESTATION]
A20: QUOTIDIEN DU MÉDECIN | B20: Presse et média | C20: AbbVie | D20: 31/01/2013 | E20: 31/01/2013 - | F20: Autre : AUTRE : [MANIFESTATION]
A21: QUOTIDIEN DU MÉDECIN | B21: Presse et média | C21: AbbVie | D21: 31/01/2013 | E21: 31/01/2013 - | F21: Autre : AUTRE : [MANIFESTATION]
A22: QUOTIDIEN DU MÉDECIN | B22: Presse et média | C22: MYLAN SAS | D22: 31/01/2013 | E22: 31/01/2013 - | F22: Edition | G22: 70
A23: QUOTIDIEN DU MÉDECIN | B23: Presse et média | C23: MYLAN SAS | D23: 31/01/2013 | E23: 31/01/2013 - | F23: Edition | G23: 209
A24: QUOTIDIEN DU MÉDECIN | B24: Presse et média | C24: MYLAN SAS | D24: 31/01/2013 | E24: 31/01/2013 - | F24: Edition | G24: 70
A25: QUOTIDIEN DU MÉDECIN | B25: Presse et média | C25: MYLAN SAS | D25: 05/02/2013 | E25: 05/02/2013 - | F25: Edition | G25: 139
A26: QUOTIDIEN DU MÉDECIN | B26: Presse et média | C26: AbbVie | D26: 07/02/2013 | E26: 07/02/2013 - | F26: Autre : AUTRE : [MANIFESTATION]
A27: QUOTIDIEN DU MÉDECIN | B27: Presse et média | C27: AbbVie | D27: 07/02/2013 | E27: 07/02/2013 - | F27: Autre : AUTRE : [MANIFESTATION]
A28: QUOTIDIEN DU MÉDECIN | B28: Presse et média | C28: AbbVie | D28: 07/02/2013 | E28: 07/02/2013 - | F28: Autre : AUTRE : [MANIFESTATION]
A29: QUOTIDIEN DU MÉDECIN | B29: Presse et média | C29: AbbVie | D29: 07/02/2013 | E29: 07/02/2013 - | F29: Autre : AUTRE : [MANIFESTATION]
A30: QUOTIDIEN DU MÉDECIN | B30: Presse et média | C30: AbbVie | D30: 07/02/2013 | E30: 07/02/2013 - | F30: Autre : AUTRE : [MANIFESTATION]
A31: QUOTIDIEN DU MÉDECIN | B31: Presse et média | C31: MYLAN SAS | D31: 11/02/2013 | E31: 11/02/2013 - | F31: Edition | G31: 70
A32: QUOTIDIEN DU MÉDECIN | B32: Presse et média | C32: MYLAN SAS | D32: 11/02/2013 | E32: 11/02/2013 - | F32: Edition | G32: 278
A33: QUOTIDIEN DU MÉDECIN | B33: Presse et média | C33: MYLAN SAS | D33: 11/02/2013 | E33: 11/02/2013 - | F33: Edition | G33: 70
A34: QUOTIDIEN DU MÉDECIN | B34: Presse et média | C34: AbbVie | D34: 12/02/2013 | E34: 12/02/2013 - | F34: Autre : AUTRE : [MANIFESTATION]
A35: QUOTIDIEN DU MÉDECIN | B35: Presse et média | C35: AbbVie | D35: 12/02/2013 | E35: 12/02/2013 - | F35: Autre : AUTRE : [MANIFESTATION]
A36: QUOTIDIEN DU MÉDECIN | B36: Presse et média | C36: AbbVie | D36: 13/02/2013 | E36: 13/02/2013 - | F36: Autre : AUTRE : [MANIFESTATION]
A37: QUOTIDIEN DU MÉDECIN | B37: Presse et média | C37: AbbVie | D37: 13/02/2013 | E37: 13/02/2013 - | F37: Autre : AUTRE : [MANIFESTATION]
A38: QUOTIDIEN DU MÉDECIN | B38: Presse et média | C38: AbbVie | D38: 19/02/2013 | E38: 19/02/2013 - | F38: Autre : AUTRE : [MANIFESTATION]
A39: QUOTIDIEN DU MÉDECIN | B39: Presse et média | C39: AbbVie | D39: 19/02/2013 | E39: 19/02/2013 - | F39: Autre : AUTRE : [MANIFESTATION]
A40: QUOTIDIEN DU MÉDECIN | B40: Presse et média | C40: AbbVie | D40: 19/02/2013 | E40: 19/02/2013 - | F40: Autre : AUTRE : [MANIFESTATION]
A41: QUOTIDIEN DU MÉDECIN | B41: Presse et média | C41: AbbVie | D41: 19/02/2013 | E41: 19/02/2013 - | F41: Autre : AUTRE : [MANIFESTATION]
A42: QUOTIDIEN DU MÉDECIN | B42: Presse et média | C42: AbbVie | D42: 20/02/2013 | E42: 20/02/2013 - | F42: Autre : AUTRE : [MANIFESTATION]
A43: QUOTIDIEN DU MÉDECIN | B43: Presse et média | C43: AbbVie | D43: 20/02/2013 | E43: 20/02/2013 - | F43: Autre : AUTRE : [MANIFESTATION]
A44: QUOTIDIEN DU MÉDECIN | B44: Presse et média | C44: AbbVie | D44: 21/02/2013 | E44: 21/02/2013 - | F44: Autre : AUTRE : [MANIFESTATION]
A45: QUOTIDIEN DU MÉDECIN | B45: Presse et média | C45: AbbVie | D45: 21/02/2013 | E45: 21/02/2013 - | F45: Autre : AUTRE : [MANIFESTATION]
A46: QUOTIDIEN DU MÉDECIN | B46: Presse et média | C46: MYLAN SAS | D46: 25/02/2013 | E46: 25/02/2013 - | F46: Edition | G46: 139
A47: QUOTIDIEN DU MÉDECIN | B47: Presse et média | C47: AbbVie | D47: 28/02/2013 | E47: 28/02/2013 - | F47: Autre : AUTRE : [MANIFESTATION]
A48: QUOTIDIEN DU MÉDECIN | B48: Presse et média | C48: AbbVie | D48: 28/02/2013 | E48: 28/02/2013 - | F48: Autre : AUTRE : [MANIFESTATION]
A49: QUOTIDIEN DU MÉDECIN | B49: Presse et média | C49: AbbVie | D49: 28/02/2013 | E49: 28/02/2013 - | F49: Autre : AUTRE : [MANIFESTATION]
A50: QUOTIDIEN DU MÉDECIN | B50: Presse et média | C50: MYLAN SAS | D50: 01/03/2013 | E50: 01/03/2013 - | F50: Edition | G50: 139
A51: QUOTIDIEN DU MÉDECIN | B51: Presse et média | C51: MYLAN SAS | D51: 04/03/2013 | E51: 04/03/2013 - | F51: Edition | G51: 487
A52: QUOTIDIEN DU MÉDECIN | B52: Presse et média | C52: AbbVie | D52: 05/03/2013 | E52: 05/03/2013 - | F52: Autre : AUTRE : [MANIFESTATION]
A53: QUOTIDIEN DU MÉDECIN | B53: Presse et média | C53: AbbVie | D53: 07/03/2013 | E53: 07/03/2013 - | F53: Autre : AUTRE : [MANIFESTATION]
A54: QUOTIDIEN DU MÉDECIN | B54: Presse et média | C54: AbbVie | D54: 07/03/2013 | E54: 07/03/2013 - | F54: Autre : AUTRE : [MANIFESTATION]
A55: QUOTIDIEN DU MÉDECIN | B55: Presse et média | C55: AbbVie | D55: 07/03/2013 | E55: 07/03/2013 - | F55: Autre : AUTRE : [MANIFESTATION]
A56: QUOTIDIEN DU MÉDECIN | B56: Presse et média | C56: AbbVie | D56: 07/03/2013 | E56: 07/03/2013 - | F56: Autre : AUTRE : [MANIFESTATION]
A57: QUOTIDIEN DU MÉDECIN | B57: Presse et média | C57: AbbVie | D57: 07/03/2013 | E57: 07/03/2013 - | F57: Autre : AUTRE : [MANIFESTATION]
A58: QUOTIDIEN DU MÉDECIN | B58: Presse et média | C58: AbbVie | D58: 12/03/2013 | E58: 12/03/2013 - | F58: Autre : AUTRE : [MANIFESTATION]
A59: QUOTIDIEN DU MÉDECIN | B59: Presse et média | C59: AbbVie | D59: 14/03/2013 | E59: 14/03/2013 - | F59: Autre : AUTRE : [MANIFESTATION]
A60: QUOTIDIEN DU MÉDECIN | B60: Presse et média | C60: AbbVie | D60: 14/03/2013 | E60: 14/03/2013 - | F60: Autre : AUTRE : [MANIFESTATION]
A61: QUOTIDIEN DU MÉDECIN | B61: Presse et média | C61: AbbVie | D61: 14/03/2013 | E61: 14/03/2013 - | F61: Autre : AUTRE : [MANIFESTATION]
A62: QUOTIDIEN DU MÉDECIN | B62: Presse et média | C62: AbbVie | D62: 19/03/2013 | E62: 19/03/2013 - | F62: Autre : AUTRE : [MANIFESTATION]
A63: QUOTIDIEN DU MÉDECIN | B63: Presse et média | C63: AbbVie | D63: 19/03/2013 | E63: 19/03/2013 - | F63: Autre : AUTRE : [MANIFESTATION]
A64: QUOTIDIEN DU MÉDECIN | B64: Presse et média | C64: AbbVie | D64: 19/03/2013 | E64: 19/03/2013 - | F64: Autre : AUTRE : [MANIFESTATION]
A65: QUOTIDIEN DU MÉDECIN | B65: Presse et média | C65: AbbVie | D65: 19/03/2013 | E65: 19/03/2013 - | F65: Autre : AUTRE : [MANIFESTATION]
A66: QUOTIDIEN DU MÉDECIN | B66: Presse et média | C66: AbbVie | D66: 20/03/2013 | E66: 20/03/2013 - | F66: Autre : AUTRE : [MANIFESTATION]
A67: QUOTIDIEN DU MÉDECIN | B67: Presse et média | C67: AbbVie | D67: 21/03/2013 | E67: 21/03/2013 - | F67: Autre : AUTRE : [MANIFESTATION]
A68: QUOTIDIEN DU MÉDECIN | B68: Presse et média | C68: AbbVie | D68: 21/03/2013 | E68: 21/03/2013 - | F68: Autre : AUTRE : [MANIFESTATION]
A69: QUOTIDIEN DU MÉDECIN | B69: Presse et média | C69: AbbVie | D69: 21/03/2013 | E69: 21/03/2013 - | F69: Autre : AUTRE : [MANIFESTATION]
A70: QUOTIDIEN DU MÉDECIN | B70: Presse et média | C70: MYLAN SAS | D70: 21/03/2013 | E70: 21/03/2013 - | F70: Edition | G70: 348
A71: QUOTIDIEN DU MÉDECIN | B71: Presse et média | C71: AbbVie | D71: 28/03/2013 | E71: 28/03/2013 - | F71: Autre : AUTRE : [MANIFESTATION]
A72: QUOTIDIEN DU MÉDECIN | B72: Presse et média | C72: AbbVie | D72: 28/03/2013 | E72: 28/03/2013 - | F72: Autre : AUTRE : [MANIFESTATION]
A73: QUOTIDIEN DU MÉDECIN | B73: Presse et média | C73: AbbVie | D73: 28/03/2013 | E73: 28/03/2013 - | F73: Autre : AUTRE : [MANIFESTATION]
A74: QUOTIDIEN DU MÉDECIN | B74: Presse et média | C74: MYLAN SAS | D74: 29/03/2013 | E74: 29/03/2013 - | F74: Edition | G74: 209
A75: QUOTIDIEN DU MÉDECIN | B75: Presse et média | C75: AbbVie | D75: 02/04/2013 | E75: 02/04/2013 - | F75: Autre : AUTRE : [MANIFESTATION]
A76: QUOTIDIEN DU MÉDECIN | B76: Presse et média | C76: AbbVie | D76: 02/04/2013 | E76: 02/04/2013 - | F76: Autre : AUTRE : [MANIFESTATION]
A77: QUOTIDIEN DU MÉDECIN | B77: Presse et média | C77: AbbVie | D77: 03/04/2013 | E77: 03/04/2013 - | F77: Autre : AUTRE : [MANIFESTATION]
A78: QUOTIDIEN DU MÉDECIN | B78: Presse et média | C78: AbbVie | D78: 03/04/2013 | E78: 03/04/2013 - | F78: Autre : AUTRE : [MANIFESTATION]
A79: QUOTIDIEN DU MÉDECIN | B79: Presse et média | C79: AbbVie | D79: 03/04/2013 | E79: 03/04/2013 - | F79: Autre : AUTRE : [MANIFESTATION]
A80: QUOTIDIEN DU MÉDECIN | B80: Presse et média | C80: AbbVie | D80: 04/04/2013 | E80: 04/04/2013 - | F80: Autre : AUTRE : [MANIFESTATION]
A81: QUOTIDIEN DU MÉDECIN | B81: Presse et média | C81: MYLAN SAS | D81: 08/04/2013 | E81: 08/04/2013 - | F81: Edition | G81: 348
A82: QUOTIDIEN DU MÉDECIN | B82: Presse et média | C82: AbbVie | D82: 09/04/2013 | E82: 09/04/2013 - | F82: Autre : AUTRE : [MANIFESTATION]
A83: QUOTIDIEN DU MÉDECIN | B83: Presse et média | C83: AbbVie | D83: 09/04/2013 | E83: 09/04/2013 - | F83: Autre : AUTRE : [MANIFESTATION]
A84: QUOTIDIEN DU MÉDECIN | B84: Presse et média | C84: AbbVie | D84: 09/04/2013 | E84: 09/04/2013 - | F84: Autre : AUTRE : [MANIFESTATION]
A85: QUOTIDIEN DU MÉDECIN | B85: Presse et média | C85: AbbVie | D85: 09/04/2013 | E85: 09/04/2013 - | F85: Autre : AUTRE : [MANIFESTATION]
A86: QUOTIDIEN DU MÉDECIN | B86: Presse et média | C86: AbbVie | D86: 10/04/2013 | E86: 10/04/2013 - | F86: Autre : AUTRE : [MANIFESTATION]
A87: QUOTIDIEN DU MÉDECIN | B87: Presse et média | C87: AbbVie | D87: 11/04/2013 | E87: 11/04/2013 - | F87: Autre : AUTRE : [MANIFESTATION]
A88: QUOTIDIEN DU MÉDECIN | B88: Presse et média | C88: AbbVie | D88: 11/04/2013 | E88: 11/04/2013 - | F88: Autre : AUTRE : [MANIFESTATION]
A89: QUOTIDIEN DU MÉDECIN | B89: Presse et média | C89: AbbVie | D89: 11/04/2013 | E89: 11/04/2013 - | F89: Autre : AUTRE : [MANIFESTATION]
A90: QUOTIDIEN DU MÉDECIN | B90: Presse et média | C90: AbbVie | D90: 11/04/2013 | E90: 11/04/2013 - | F90: Autre : AUTRE : [MANIFESTATION]
A91: QUOTIDIEN DU MÉDECIN | B91: Presse et média | C91: AbbVie | D91: 11/04/2013 | E91: 11/04/2013 - | F91: Autre : AUTRE : [MANIFESTATION]
A92: QUOTIDIEN DU MÉDECIN | B92: Presse et média | C92: MYLAN SAS | D92: 15/04/2013 | E92: 15/04/2013 - | F92: Edition | G92: 417
A93: QUOTIDIEN DU MÉDECIN | B93: Presse et média | C93: AbbVie | D93: 16/04/2013 | E93: 16/04/2013 - | F93: Autre : AUTRE : [MANIFESTATION]
A94: QUOTIDIEN DU MÉDECIN | B94: Presse et média | C94: AbbVie | D94: 16/04/2013 | E94: 16/04/2013 - | F94: Autre : AUTRE : [MANIFESTATION]
A95: QUOTIDIEN DU MÉDECIN | B95: Presse et média | C95: AbbVie | D95: 16/04/2013 | E95: 16/04/2013 - | F95: Autre : AUTRE : [MANIFESTATION]
A96: QUOTIDIEN DU MÉDECIN | B96: Presse et média | C96: AbbVie | D96: 16/04/2013 | E96: 16/04/2013 - | F96: Autre : AUTRE : [MANIFESTATION]
A97: QUOTIDIEN DU MÉDECIN | B97: Presse et média | C97: AbbVie | D97: 17/04/2013 | E97: 17/04/2013 - | F97: Autre : AUTRE : [MANIFESTATION]
A98: QUOTIDIEN DU MÉDECIN | B98: Presse et média | C98: AbbVie | D98: 17/04/2013 | E98: 17/04/2013 - | F98: Autre : AUTRE : [MANIFESTATION]
A99: QUOTIDIEN DU MÉDECIN | B99: Presse et média | C99: AbbVie | D99: 18/04/2013 | E99: 18/04/2013 - | F99: Autre : AUTRE : [MANIFESTATION]
A100: QUOTIDIEN DU MÉDECIN | B100: Presse et média | C100: AbbVie | D100: 18/04/2013 | E100: 18/04/2013 - | F100: Autre : AUTRE : [MANIFESTATION]
A101: QUOTIDIEN DU MÉDECIN | B101: Presse et média | C101: AbbVie | D101: 18/04/2013 | E101: 18/04/2013 - | F101: Autre : AUTRE : [MANIFESTATION]
A102: QUOTIDIEN DU MÉDECIN | B102: Presse et média | C102: MYLAN SAS | D102: 22/04/2013 | E102: 22/04/2013 - | F102: Edition | G102: 70
A103: QUOTIDIEN DU MÉDECIN | B103: Presse et média | C103: MYLAN SAS | D103: 22/04/2013 | E103: 22/04/2013 - | F103: Edition | G103: 139
A104: QUOTIDIEN DU MÉDECIN | B104: Presse et média | C104: AbbVie | D104: 23/04/2013 | E104: 23/04/2013 - | F104: Autre : AUTRE : [MANIFESTATION]
A105: QUOTIDIEN DU MÉDECIN | B105: Presse et média | C105: AbbVie | D105: 25/04/2013 | E105: 25/04/2013 - | F105: Autre : AUTRE : [MANIFESTATION]
A106: QUOTIDIEN DU MÉDECIN | B106: Presse et média | C106: AbbVie | D106: 14/05/2013 | E106: 14/05/2013 - | F106: Autre : AUTRE : [MANIFESTATION]
A107: QUOTIDIEN DU MÉDECIN | B107: Presse et média | C107: AbbVie | D107: 14/05/2013 | E107: 14/05/2013 - | F107: Autre : AUTRE : [MANIFESTATION]
A108: QUOTIDIEN DU MÉDECIN | B108: Presse et média | C108: AbbVie | D108: 14/05/2013 | E108: 14/05/2013 - | F108: Autre : AUTRE : [MANIFESTATION]
A109: QUOTIDIEN DU MÉDECIN | B109: Presse et média | C109: AbbVie | D109: 14/05/2013 | E109: 14/05/2013 - | F109: Autre : AUTRE : [MANIFESTATION]
A110: QUOTIDIEN DU PHARMACIEN | B110: Presse et média | C110: MYLAN SAS | D110: 14/05/2013 | E110: 14/05/2013 - | F110: Edition | G110: 7176
A111: QUOTIDIEN DU MÉDECIN | B111: Presse et média | C111: AbbVie | D111: 15/05/2013 | E111: 15/05/2013 - | F111: Autre : AUTRE : [MANIFESTATION]
A112: QUOTIDIEN DU MÉDECIN | B112: Presse et média | C112: AbbVie | D112: 16/05/2013 | E112: 16/05/2013 - | F112: Autre : AUTRE : [MANIFESTATION]
A113: QUOTIDIEN DU PHARMACIEN | B113: Presse et média | C113: MYLAN SAS | D113: 27/05/2013 | E113: 27/05/2013 - | F113: Edition | G113: 48410
A114: QUOTIDIEN DU MÉDECIN | B114: Presse et média | C114: AbbVie | D114: 28/05/2013 | E114: 28/05/2013 - | F114: Autre : AUTRE : [MANIFESTATION]
A115: QUOTIDIEN DU MÉDECIN | B115: Presse et média | C115: AbbVie | D115: 28/05/2013 | E115: 28/05/2013 - | F115: Autre : AUTRE : [MANIFESTATION]
A116: QUOTIDIEN DU MÉDECIN | B116: Presse et média | C116: AbbVie | D116: 28/05/2013 | E116: 28/05/2013 - | F116: Autre : AUTRE : [MANIFESTATION]
A117: QUOTIDIEN DU MÉDECIN | B117: Presse et média | C117: MYLAN SAS | D117: 29/05/2013 | E117: 29/05/2013 - | F117: Edition | G117: 70
A118: QUOTIDIEN DU MÉDECIN | B118: Presse et média | C118: MYLAN SAS | D118: 29/05/2013 | E118: 29/05/2013 - | F118: Edition | G118: 70
A119: QUOTIDIEN DU MÉDECIN | B119: Presse et média | C119: MYLAN SAS | D119: 29/05/2013 | E119: 29/05/2013 - | F119: Edition | G119: 139
A120: QUOTIDIEN DU MÉDECIN | B120: Presse et média | C120: MYLAN SAS | D120: 29/05/2013 | E120: 29/05/2013 - | F120: Edition | G120: 70
A121: QUOTIDIEN DU MÉDECIN | B121: Presse et média | C121: MYLAN SAS | D121: 29/05/2013 | E121: 29/05/2013 - | F121: Edition | G121: 139
A122: QUOTIDIEN DU MÉDECIN | B122: Presse et média | C122: AbbVie | D122: 30/05/2013 | E122: 30/05/2013 - | F122: Autre : AUTRE : [MANIFESTATION]
A123: QUOTIDIEN DU MÉDECIN | B123: Presse et média | C123: AbbVie | D123: 30/05/2013 | E123: 30/05/2013 - | F123: Autre : AUTRE : [MANIFESTATION]
A124: QUOTIDIEN DU MÉDECIN | B124: Presse et média | C124: AbbVie | D124: 30/05/2013 | E124: 30/05/2013 - | F124: Autre : AUTRE : [MANIFESTATION]
A125: QUOTIDIEN DU MÉDECIN | B125: Presse et média | C125: AbbVie | D125: 30/05/2013 | E125: 30/05/2013 - | F125: Autre : AUTRE : [MANIFESTATION]
A126: QUOTIDIEN DU MÉDECIN | B126: Presse et média | C126: MYLAN SAS | D126: 30/05/2013 | E126: 30/05/2013 - | F126: Edition | G126: 70
A127: QUOTIDIEN DU MÉDECIN | B127: Presse et média | C127: SANOFI PASTEUR MSD SNC | D127: 31/05/2013 | E127: 31/05/2013 - | F127: Autre : Conseil
A128: QUOTIDIEN DU MÉDECIN | B128: Presse et média | C128: AbbVie | D128: 04/06/2013 | E128: 04/06/2013 - | F128: Autre : AUTRE : [MANIFESTATION]
A129: QUOTIDIEN DU MÉDECIN | B129: Presse et média | C129: MYLAN SAS | D129: 04/06/2013 | E129: 04/06/2013 - | F129: Edition | G129: 139
A130: QUOTIDIEN DU MÉDECIN | B130: Presse et média | C130: AbbVie | D130: 05/06/2013 | E130: 05/06/2013 - | F130: Autre : AUTRE : [MANIFESTATION]
A131: QUOTIDIEN DU MÉDECIN | B131: Presse et média | C131: AbbVie | D131: 05/06/2013 | E131: 05/06/2013 - | F131: Autre : AUTRE : [MANIFESTATION]
A132: QUOTIDIEN DU MÉDECIN | B132: Presse et média | C132: AbbVie | D132: 05/06/2013 | E132: 05/06/2013 - | F132: Autre : AUTRE : [MANIFESTATION]
A133: QUOTIDIEN DU MÉDECIN | B133: Presse et média | C133: AbbVie | D133: 05/06/2013 | E133: 05/06/2013 - | F133: Autre : AUTRE : [MANIFESTATION]
A134: QUOTIDIEN DU MÉDECIN | B134: Presse et média | C134: AbbVie | D134: 06/06/2013 | E134: 06/06/2013 - | F134: Autre : AUTRE : [MANIFESTATION]
A135: QUOTIDIEN DU MÉDECIN | B135: Presse et média | C135: AbbVie | D135: 06/06/2013 | E135: 06/06/2013 - | F135: Autre : AUTRE : [MANIFESTATION]
A136: QUOTIDIEN DU MÉDECIN | B136: Presse et média | C136: AbbVie | D136: 06/06/2013 | E136: 06/06/2013 - | F136: Autre : AUTRE : [MANIFESTATION]
A137: QUOTIDIEN DU MÉDECIN | B137: Presse et média | C137: AbbVie | D137: 06/06/2013 | E137: 06/06/2013 - | F137: Autre : AUTRE : [MANIFESTATION]
A138: QUOTIDIEN DU MÉDECIN | B138: Presse et média | C138: AbbVie | D138: 06/06/2013 | E138: 06/06/2013 - | F138: Autre : AUTRE : [MANIFESTATION]
A139: QUOTIDIEN DU MÉDECIN | B139: Presse et média | C139: AbbVie | D139: 06/06/2013 | E139: 06/06/2013 - | F139: Autre : AUTRE : [MANIFESTATION]
A140: QUOTIDIEN DU MÉDECIN | B140: Presse et média | C140: AbbVie | D140: 06/06/2013 | E140: 06/06/2013 - | F140: Autre : AUTRE : [MANIFESTATION]
A141: QUOTIDIEN DU MÉDECIN | B141: Presse et média | C141: MYLAN SAS | D141: 07/06/2013 | E141: 07/06/2013 - | F141: Edition | G141: 70
A142: QUOTIDIEN DU MÉDECIN | B142: Presse et média | C142: MYLAN SAS | D142: 07/06/2013 | E142: 07/06/2013 - | F142: Edition | G142: 139
A143: QUOTIDIEN DU MÉDECIN | B143: Presse et média | C143: AbbVie | D143: 11/06/2013 | E143: 11/06/2013 - | F143: Autre : AUTRE : [MANIFESTATION]
A144: QUOTIDIEN DU MÉDECIN | B144: Presse et média | C144: AbbVie | D144: 11/06/2013 | E144: 11/06/2013 - | F144: Autre : AUTRE : [MANIFESTATION]
A145: QUOTIDIEN DU MÉDECIN | B145: Presse et média | C145: AbbVie | D145: 11/06/2013 | E145: 11/06/2013 - | F145: Autre : AUTRE : [MANIFESTATION]
A146: QUOTIDIEN DU MÉDECIN | B146: Presse et média | C146: AbbVie | D146: 13/06/2013 | E146: 13/06/2013 - | F146: Autre : AUTRE : [MANIFESTATION]
A147: QUOTIDIEN DU MÉDECIN | B147: Presse et média | C147: AbbVie | D147: 13/06/2013 | E147: 13/06/2013 - | F147: Autre : AUTRE : [MANIFESTATION]
A148: QUOTIDIEN DU MÉDECIN | B148: Presse et média | C148: AbbVie | D148: 13/06/2013 | E148: 13/06/2013 - | F148: Autre : AUTRE : [MANIFESTATION]
A149: QUOTIDIEN DU MÉDECIN | B149: Presse et média | C149: MYLAN SAS | D149: 13/06/2013 | E149: 13/06/2013 - | F149: Edition | G149: 70
A150: QUOTIDIEN DU MÉDECIN | B150: Presse et média | C150: AbbVie | D150: 18/06/2013 | E150: 18/06/2013 - | F150: Autre : AUTRE : [MANIFESTATION]
A151: QUOTIDIEN DU MÉDECIN | B151: Presse et média | C151: AbbVie | D151: 18/06/2013 | E151: 18/06/2013 - | F151: Autre : AUTRE : [MANIFESTATION]
A152: QUOTIDIEN DU MÉDECIN | B152: Presse et média | C152: AbbVie | D152: 18/06/2013 | E152: 18/06/2013 - | F152: Autre : AUTRE : [MANIFESTATION]
A153: QUOTIDIEN DU MÉDECIN | B153: Presse et média | C153: AbbVie | D153: 18/06/2013 | E153: 18/06/2013 - | F153: Autre : AUTRE : [MANIFESTATION]
A154: QUOTIDIEN DU MÉDECIN | B154: Presse et média | C154: AbbVie | D154: 19/06/2013 | E154: 19/06/2013 - | F154: Autre : AUTRE : [MANIFESTATION]
A155: QUOTIDIEN DU MÉDECIN | B155: Presse et média | C155: AbbVie | D155: 19/06/2013 | E155: 19/06/2013 - | F155: Autre : AUTRE : [MANIFESTATION]
A156: QUOTIDIEN DU MÉDECIN | B156: Presse et média | C156: AbbVie | D156: 20/06/2013 | E156: 20/06/2013 - | F156: Autre : AUTRE : [MANIFESTATION]
A157: QUOTIDIEN DU MÉDECIN | B157: Presse et média | C157: AbbVie | D157: 20/06/2013 | E157: 20/06/2013 - | F157: Autre : AUTRE : [MANIFESTATION]
A158: QUOTIDIEN DU MÉDECIN | B158: Presse et média | C158: AbbVie | D158: 20/06/2013 | E158: 20/06/2013 - | F158: Autre : AUTRE : [MANIFESTATION]
A159: QUOTIDIEN DU MÉDECIN | B159: Presse et média | C159: AbbVie | D159: 20/06/2013 | E159: 20/06/2013 - | F159: Autre : AUTRE : [MANIFESTATION]
A160: QUOTIDIEN DU MÉDECIN | B160: Presse et média | C160: MYLAN SAS | D160: 24/06/2013 | E160: 24/06/2013 - | F160: Edition | G160: 70
A161: QUOTIDIEN DU MÉDECIN | B161: Presse et média | C161: AbbVie | D161: 25/06/2013 | E161: 25/06/2013 - | F161: Autre : AUTRE : [MANIFESTATION]
A162: QUOTIDIEN DU MÉDECIN | B162: Presse et média | C162: MYLAN SAS | D162: 26/06/2013 | E162: 26/06/2013 - | F162: Edition | G162: 626
A163: QUOTIDIEN DU MÉDECIN | B163: Presse et média | C163: MYLAN SAS | D163: 26/06/2013 | E163: 26/06/2013 - | F163: Edition | G163: 139
A164: QUOTIDIEN DU MÉDECIN | B164: Presse et média | C164: AbbVie | D164: 27/06/2013 | E164: 27/06/2013 - | F164: Autre : AUTRE : [MANIFESTATION]
A165: QUOTIDIEN DU MÉDECIN | B165: Presse et média | C165: AbbVie | D165: 27/06/2013 | E165: 27/06/2013 - | F165: Autre : AUTRE : [MANIFESTATION]
A166: QUOTIDIEN DU MÉDECIN | B166: Presse et média | C166: AbbVie | D166: 27/06/2013 | E166: 27/06/2013 - | F166: Autre : AUTRE : [MANIFESTATION]
A167: QUOTIDIEN DU PHARMACIEN | B167: Presse et média | C167: MYLAN SAS | D167: 27/06/2013 | E167: 27/06/2013 - | F167: Edition | G167: 79531
A168: QUOTIDIEN DU PHARMACIEN | B168: Presse et média | C168: MYLAN SAS | D168: 27/06/2013 | E168: 27/06/2013 - | F168: Edition | G168: 79531
A169: QUOTIDIEN DU PHARMACIEN | B169: Presse et média | C169: MYLAN SAS | D169: 27/06/2013 | E169: 27/06/2013 - | F169: Edition | G169: 77802
A170: QUOTIDIEN DU PHARMACIEN | B170: Presse et média | C170: MYLAN SAS | D170: 27/06/2013 | E170: 27/06/2013 - | F170: Edition | G170: 74344
A171: QUOTIDIEN DU PHARMACIEN | B171: Presse et média | C171: MYLAN SAS | D171: 27/06/2013 | E171: 27/06/2013 - | F171: Edition | G171: 5815
A172: QUOTIDIEN DU PHARMACIEN | B172: Presse et média | C172: MYLAN SAS | D172: 27/06/2013 | E172: 27/06/2013 - | F172: Edition | G172: 610
A173: QUOTIDIEN DU PHARMACIEN | B173: Presse et média | C173: MYLAN SAS | D173: 27/06/2013 | E173: 27/06/2013 - | F173: Edition | G173: 77802
A174: QUOTIDIEN DU PHARMACIEN | B174: Presse et média | C174: MYLAN SAS | D174: 27/06/2013 | E174: 27/06/2013 - | F174: Edition | G174: 10319
A175: QUOTIDIEN DU PHARMACIEN | B175: Presse et média | C175: SANDOZ | D175: 01/07/2013 | E175: 01/07/2013 - 31/12/2013 | F175: Edition
A176: QUOTIDIEN DU MÉDECIN | B176: Presse et média | C176: MYLAN SAS | D176: 02/07/2013 | E176: 02/07/2013 - | F176: Edition | G176: 70
A177: SESC | B177: Presse et média | C177: LABORATOIRES JUVISE PHARMACEUTICALS | D177: 04/07/2013 | E177: 04/07/2013 - | F177: Autre : PUBLICITE
A178: DÉCISION & STRATÉGIE SANTÉ | B178: Personnes morales assurant la formation initiale ou continue des professionnels de santé | C178: GILEAD SCIENCES | D178: 08/07/2013 | E178: 15/07/2013 - | F178: Autre : Prestation de service
A179: QUOTIDIEN DU MÉDECIN | B179: Presse et média | C179: MYLAN SAS | D179: 08/07/2013 | E179: 08/07/2013 - | F179: Edition | G179: 139
A180: QUOTIDIEN DU MÉDECIN | B180: Presse et média | C180: MYLAN SAS | D180: 09/07/2013 | E180: 09/07/2013 - | F180: Edition | G180: 209
A181: SESC | B181: Académies, Fondation, sociétés savantes, organismes de conseils | C181: AbbVie | D181: 10/07/2013 | E181: 10/07/2013 - | F181: Autre : CONSEIL
A182: QUOTIDIEN DU PHARMACIEN | B182: Presse et média | C182: MYLAN SAS | D182: 11/07/2013 | E182: 11/07/2013 - | F182: Edition | G182: 2580
A183: QUOTIDIEN DU PHARMACIEN | B183: Presse et média | C183: MYLAN SAS | D183: 11/07/2013 | E183: 11/07/2013 - | F183: Edition | G183: 12103
A184: QUOTIDIEN DU MÉDECIN | B184: Presse et média | C184: BIOCODEX | D184: 15/07/2013 | E184: 15/07/2013 - 05/12/2013 | F184: Autre : PUBLICITE
A185: QUOTIDIEN DU PHARMACIEN | B185: Presse et média | C185: MYLAN SAS | D185: 17/07/2013 | E185: 17/07/2013 - | F185: Edition | G185: 8905
A186: SESC | B186: Presse et média | C186: LABORATOIRES JUVISE PHARMACEUTICALS | D186: 18/07/2013 | E186: 18/07/2013 - | F186: Autre : PUBLICITE
A187: QUOTIDIEN DU PHARMACIEN | B187: Presse et média | C187: IPSEN PHARMA | D187: 19/07/2013 | E187: 02/09/2013 - 02/09/2013 | F187: Edition
A188: SESC | B188: Académies, Fondation, sociétés savantes, organismes de conseils | C188: AbbVie | D188: 25/07/2013 | E188: 25/07/2013 - | F188: Autre : CONSEIL
A189: QUOTIDIEN DU MÉDECIN | B189: Presse et média | C189: MYLAN SAS | D189: 01/08/2013 | E189: 01/08/2013 - | F189: Edition | G189: 70
A190: QUOTIDIEN DU MÉDECIN | B190: Presse et média | C190: MYLAN SAS | D190: 01/08/2013 | E190: 01/08/2013 - | F190: Edition | G190: 70
A191: QUOTIDIEN DU PHARMACIEN | B191: Presse et média | C191: MYLAN SAS | D191: 27/08/2013 | E191: 27/08/2013 - | F191: Edition | G191: 1601
A192: QUOTIDIEN DU PHARMACIEN | B192: Presse et média | C192: MYLAN SAS | D192: 30/08/2013 | E192: 30/08/2013 - | F192: Edition | G192: 1996
A193: QUOTIDIEN DU PHARMACIEN | B193: Presse et média | C193: RANBAXY PHARMACIE GENERIQUES | D193: 02/09/2013 | E193: 02/09/2013 - 31/12/2013 | F193: Achat / location d'espace publicitaire
A194: SESC | B194: Presse et média | C194: ROCHE DIAGNOSTICS FRANCE | D194: 16/09/2013 | E194: 16/09/2013 - | F194: Autre : PUBLICITE
A195: DÉCISION & STRATÉGIE SANTÉ | B195: Presse et média | C195: B.BRAUN MEDICAL SAS | D195: 19/09/2013 | E195: 19/09/2013 - | F195: Autre : AUTRE : [PRESTATIONS DE SERVICES]
A196: QUOTIDIEN DU PHARMACIEN | B196: Presse et média | C196: BIOCODEX | D196: 25/09/2013 | E196: 25/09/2013 - 25/09/2013 | F196: Autre : PUBLICITE
A197: DÉCISION & STRATÉGIE SANTÉ | B197: Presse et média | C197: ROCHE SAS | D197: 30/09/2013 | E197: 30/09/2013 - | F197: Edition
A198: QUOTIDIEN DU PHARMACIEN | B198: Presse et média | C198: MYLAN SAS | D198: 30/09/2013 | E198: 30/09/2013 - | F198: Edition
A199: QUOTIDIEN DU PHARMACIEN | B199: Presse et média | C199: MYLAN SAS | D199: 30/09/2013 | E199: 30/09/2013 - | F199: Edition | G199: 12103
A200: QUOTIDIEN DU PHARMACIEN | B200: Presse et média | C200: MYLAN SAS | D200: 30/09/2013 | E200: 30/09/2013 - | F200: Edition | G200: 3444
... 520 more rows

Sheet Rémunérations
A1: Entreprise | B1: Type de bénéficiaire | C1: Bénéficiaire | D1: Date | E1: Montant
A2: JANSSEN-CILAG | B2: Académies, Fondation, sociétés savantes, organismes de conseils | C2: DÉCISION & STRATÉGIE SANTÉ | D2: 23/07/2016 | E2: 6360
A3: ROCHE DIABETES CARE FRANCE | B3: Presse et média | C3: QUOTIDIEN DU MÉDECIN | D3: 23/01/2015 | E3: 1170
A4: MUNDIPHARMA | B4: Presse et média | C4: QUOTIDIEN DU MÉDECIN | D4: 30/07/2015 | E4: 18036
A5: Lilly France SAS | B5: Presse et média | C5: QUOTIDIEN DU MÉDECIN | D5: 20/01/2017 | E5: 39600
A6: JANSSEN-CILAG | B6: Presse et média | C6: QUOTIDIEN DU MÉDECIN | D6: 2017-03-09 | E6: 540
A7: JANSSEN-CILAG | B7: Presse et média | C7: QUOTIDIEN DU MÉDECIN | D7: 2017-03-09 | E7: 11340
A8: JANSSEN-CILAG | B8: Presse et média | C8: QUOTIDIEN DU MÉDECIN | D8: 2017-03-09 | E8: 10800
A9: LES LABORATOIRES SERVIER | B9: Presse et média | C9: QUOTIDIEN DU MÉDECIN | D9: 2017-06-05 | E9: 19000
A10: Lilly France SAS | B10: Presse et média | C10: QUOTIDIEN DU MÉDECIN | D10: 2017-07-10 | E10: 21840
A11: Lilly France SAS | B11: Presse et média | C11: QUOTIDIEN DU MÉDECIN | D11: 2017-07-10 | E11: 11760
A12: Zambon France | B12: Presse et média | C12: QUOTIDIEN DU MÉDECIN | D12: 30/07/2017 | E12: 199
A13: Lilly France SAS | B13: Presse et média | C13: QUOTIDIEN DU MÉDECIN | D13: 25/09/2017 | E13: 5400
A14: Lilly France SAS | B14: Presse et média | C14: QUOTIDIEN DU MÉDECIN | D14: 2017-10-04 | E14: 11760
A15: BIOGARAN | B15: Presse et média | C15: QUOTIDIEN DU MÉDECIN | D15: 15/11/2017 | E15: 14976
A16: LABORATOIRES GENEVRIER | B16: Presse et média | C16: QUOTIDIEN DU MÉDECIN | D16: 22/03/2018 | E16: 7245
A17: Fresenius Medical Care France S.A.S. | B17: Presse et média | C17: QUOTIDIEN DU MÉDECIN | D17: 29/03/2018 | E17: 5410
A18: LABORATOIRES GENEVRIER | B18: Presse et média | C18: QUOTIDIEN DU MÉDECIN | D18: 2018-04-09 | E18: 4050
A19: DIASORIN SA | B19: Presse et média | C19: QUOTIDIEN DU MÉDECIN | D19: 29/06/2018 | E19: 17400
A20: MYLAN SAS | B20: Presse et média | C20: QUOTIDIEN DU PHARMACIEN | D20: 20/03/2017 | E20: 72
A21: MYLAN SAS | B21: Presse et média | C21: QUOTIDIEN DU PHARMACIEN | D21: 17/05/2017 | E21: 149
A22: MYLAN SAS | B22: Presse et média | C22: QUOTIDIEN DU PHARMACIEN | D22: 17/05/2017 | E22: 149
A23: MYLAN SAS | B23: Presse et média | C23: QUOTIDIEN DU PHARMACIEN | D23: 17/05/2017 | E23: 75
A24: MYLAN SAS | B24: Presse et média | C24: QUOTIDIEN DU PHARMACIEN | D24: 2017-06-12 | E24: 75
A25: MYLAN SAS | B25: Presse et média | C25: QUOTIDIEN DU PHARMACIEN | D25: 21/06/2017 | E25: 1714
A26: MYLAN SAS | B26: Presse et média | C26: QUOTIDIEN DU PHARMACIEN | D26: 21/06/2017 | E26: 75
A27: MYLAN SAS | B27: Presse et média | C27: QUOTIDIEN DU PHARMACIEN | D27: 21/06/2017 | E27: 75
A28: MYLAN SAS | B28: Presse et média | C28: QUOTIDIEN DU PHARMACIEN | D28: 2017-10-12 | E28: 75
A29: MYLAN SAS | B29: Presse et média | C29: QUOTIDIEN DU PHARMACIEN | D29: 18/10/2017 | E29: 948
A30: MYLAN SAS | B30: Presse et média | C30: QUOTIDIEN DU PHARMACIEN | D30: 15/11/2017 | E30: 820
A31: MYLAN SAS | B31: Presse et média | C31: QUOTIDIEN DU PHARMACIEN | D31: 15/11/2017 | E31: 522
A32: MYLAN SAS | B32: Presse et média | C32: QUOTIDIEN DU PHARMACIEN | D32: 15/11/2017 | E32: 75
A33: MYLAN SAS | B33: Presse et média | C33: QUOTIDIEN DU PHARMACIEN | D33: 15/11/2017 | E33: 75
A34: MYLAN SAS | B34: Presse et média | C34: QUOTIDIEN DU PHARMACIEN | D34: 15/11/2017 | E34: 75
A35: MYLAN SAS | B35: Presse et média | C35: QUOTIDIEN DU PHARMACIEN | D35: 29/11/2017 | E35: 75
A36: MYLAN SAS | B36: Presse et média | C36: QUOTIDIEN DU PHARMACIEN | D36: 2017-12-04 | E36: 75
A37: MYLAN SAS | B37: Presse et média | C37: QUOTIDIEN DU PHARMACIEN | D37: 2017-12-08 | E37: 7740
A38: MYLAN SAS | B38: Presse et média | C38: QUOTIDIEN DU PHARMACIEN | D38: 2017-12-08 | E38: 27930
A39: MYLAN SAS | B39: Presse et média | C39: QUOTIDIEN DU PHARMACIEN | D39: 2018-01-10 | E39: 6605
A40: MYLAN SAS | B40: Presse et média | C40: QUOTIDIEN DU PHARMACIEN | D40: 24/01/2018 | E40: 75
A41: MYLAN SAS | B41: Presse et média | C41: QUOTIDIEN DU PHARMACIEN | D41: 26/02/2018 | E41: 298
A42: MYLAN SAS | B42: Presse et média | C42: QUOTIDIEN DU PHARMACIEN | D42: 26/02/2018 | E42: 75
A43: MYLAN SAS | B43: Presse et média | C43: QUOTIDIEN DU PHARMACIEN | D43: 2018-03-07 | E43: 75
A44: MYLAN SAS | B44: Presse et média | C44: QUOTIDIEN DU PHARMACIEN | D44: 23/03/2018 | E44: 671
A45: MYLAN SAS | B45: Presse et média | C45: QUOTIDIEN DU PHARMACIEN | D45: 2018-04-03 | E45: 11880
A46: MYLAN SAS | B46: Presse et média | C46: QUOTIDIEN DU PHARMACIEN | D46: 2018-04-04 | E46: 224
A47: LABORATOIRES GENEVRIER | B47: Presse et média | C47: QUOTIDIEN DU PHARMACIEN | D47: 2018-04-09 | E47: 38000
A48: LABORATOIRES GENEVRIER | B48: Presse et média | C48: QUOTIDIEN DU PHARMACIEN | D48: 2018-04-09 | E48: 1370
A49: MYLAN SAS | B49: Presse et média | C49: QUOTIDIEN DU PHARMACIEN | D49: 17/04/2018 | E49: 149
A50: MYLAN SAS | B50: Presse et média | C50: QUOTIDIEN DU PHARMACIEN | D50: 17/04/2018 | E50: 522
A51: MYLAN SAS | B51: Presse et média | C51: QUOTIDIEN DU PHARMACIEN | D51: 17/04/2018 | E51: 1416
A52: MYLAN SAS | B52: Presse et média | C52: QUOTIDIEN DU PHARMACIEN | D52: 17/04/2018 | E52: 745
A53: MYLAN SAS | B53: Presse et média | C53: QUOTIDIEN DU PHARMACIEN | D53: 17/04/2018 | E53: 75
A54: MYLAN SAS | B54: Presse et média | C54: QUOTIDIEN DU PHARMACIEN | D54: 17/04/2018 | E54: 75
A55: MYLAN SAS | B55: Presse et média | C55: QUOTIDIEN DU PHARMACIEN | D55: 17/04/2018 | E55: 75
A56: MYLAN SAS | B56: Presse et média | C56: QUOTIDIEN DU PHARMACIEN | D56: 18/04/2018 | E56: 75
A57: MYLAN SAS | B57: Presse et média | C57: QUOTIDIEN DU PHARMACIEN | D57: 20/04/2018 | E57: 75
A58: LABORATOIRES GENEVRIER | B58: Presse et média | C58: QUOTIDIEN DU PHARMACIEN | D58: 2018-06-07 | E58: 24450
A59: LUNDBECK SAS | B59: Presse et média | C59: SESC | D59: 20/05/2016 | E59: 52000
A60: AbbVie | B60: Académies, Fondation, sociétés savantes, organismes de conseils | C60: SESC | D60: 27/06/2016 | E60: 2960
A61: AbbVie | B61: Académies, Fondation, sociétés savantes, organismes de conseils | C61: SESC | D61: 27/06/2016 | E61: 3529
A62: AbbVie | B62: Académies, Fondation, sociétés savantes, organismes de conseils | C62: SESC | D62: 2016-09-05 | E62: 24415
A63: Laboratoires THEA | B63: Presse et média | C63: SESC | D63: 23/03/2017 | E63: 2400
A64: BIOGARAN | B64: Presse et média | C64: SESC | D64: 2017-07-11 | E64: 42312
A65: BIOGARAN | B65: Presse et média | C65: SESC | D65: 2017-08-01 | E65: 6298
A66: LEO Pharma | B66: Presse et média | C66: SESC | D66: 18/08/2017 | E66: 17012
A67: LEO Pharma | B67: Presse et média | C67: SESC | D67: 18/08/2017 | E67: 6193
A68: LEO Pharma | B68: Presse et média | C68: SESC | D68: 18/08/2017 | E68: 27974
A69: BIOGARAN | B69: Presse et média | C69: SESC | D69: 29/08/2017 | E69: 2046
A70: BIOGARAN | B70: Presse et média | C70: SESC | D70: 2017-09-05 | E70: 19828
A71: BIOGARAN | B71: Presse et média | C71: SESC | D71: 2017-09-12 | E71: 12104
A72: BIOGARAN | B72: Presse et média | C72: SESC | D72: 25/10/2017 | E72: 29028
A73: BIOGARAN | B73: Presse et média | C73: SESC | D73: 21/11/2017 | E73: 41624
A74: LEO Pharma | B74: Presse et média | C74: SESC | D74: 27/11/2017 | E74: 18610
A75: LEO Pharma | B75: Presse et média | C75: SESC | D75: 27/11/2017 | E75: 30880
A76: LEO Pharma | B76: Presse et média | C76: SESC | D76: 2017-12-01 | E76: 7034
A77: BIOGARAN | B77: Presse et média | C77: SESC | D77: 2017-12-04 | E77: 40738
A78: BIOGARAN | B78: Presse et média | C78: SESC | D78: 22/12/2017 | E78: 7524
A79: Laboratoires THEA | B79: Presse et média | C79: SESC | D79: 31/12/2017 | E79: 5400
C81: Total | E81: =SUM(E2:E79) -> 734519
C87: 2ème semestre 2017 | E87: =SUM(E64:E79)+SUM(E28:E38)+SUM(E10:E15) -> 418950
C88: 1er semestre 2018 | E88: =SUM(E39:E58)+SUM(E16:E19) -> 121035
C89: 12 derniers mois disponibles | E89: =SUM(E87:E88) -> 539985
C91: 2013
C92: 2014
C93: 2015
C94: 2016
C95: 2017
C96: 2018
C99: DÉCISION & STRATÉGIE SANTÉ | E99: =SUMIF(C$2:C$79,"DÉCISION & STRATÉGIE SANTÉ",E$2:E$79) -> 6360
C100: QUOTIDIEN DU MÉDECIN | E100: =SUMIF(C$2:C$79,"QUOTIDIEN DU MÉDECIN",E$2:E$79) -> 200526
C101: QUOTIDIEN DU PHARMACIEN | E101: =SUMIF(C$2:C$79,"QUOTIDIEN DU PHARMACIEN",E$2:E$79) -> 127724
C102: SESC | E102: =SUMIF(C$2:C$79,"SESC",E$2:E$79) -> 399909
C103: TOTAL GROUPE PROFESSION SANTE | E103: =SUM(E99:E102) -> 734519
F104: % | G104: Cumul%
C105: BIOGARAN | E105: =SUMIF(A$2:A$79,"BIOGARAN",E$2:E$79) -> 216478 | F105: =E105/E$103 -> 0.2947207628 | G105: =F105 -> 0.2947207628
C106: LEO Pharma | E106: =SUMIF(A$2:A$79,"LEO Pharma",E$2:E$79) -> 107703 | F106: =E106/E$103 -> 0.1466306522 | G106: =F106+G105 -> 0.441351415
C107: Lilly France SAS | E107: =SUMIF(A$2:A$79,"Lilly France SAS",E$2:E$79) -> 90360 | F107: 0.123019282 | G107: =F107+G106 -> 0.564370697
C108: LABORATOIRES GENEVRIER | E108: =SUMIF(A$2:A$79,"LABORATOIRES GENEVRIER",E$2:E$79) -> 75115 | F108: 0.1022642028 | G108: 0.6666348998
C109: MYLAN SAS | E109: =SUMIF(A$2:A$79,"MYLAN SAS",E$2:E$79) -> 63904 | F109: 0.08700115314 | G109: 0.753636053
C110: LUNDBECK SAS | E110: =SUMIF(A$2:A$79,"LUNDBECK SAS",E$2:E$79) -> 52000 | F110: 0.07079462887 | G110: 0.8244306818
C111: AbbVie | E111: =SUMIF(A$2:A$79,"AbbVie",E$2:E$79) -> 30904 | F111: 0.04207379251 | G111: 0.8665044744
C112: JANSSEN-CILAG | E112: =SUMIF(A$2:A$79,"JANSSEN-CILAG",E$2:E$79) -> 29040 | F112: 0.03953607735 | G112: 0.9060405517
C113: LES LABORATOIRES SERVIER | E113: =SUMIF(A$2:A$79,"LES LABORATOIRES SERVIER",E$2:E$79) -> 19000 | F113: 0.02586726824 | G113: 0.9319078199
C114: IPSEN PHARMA | E114: =SUMIF(A$2:A$79,"IPSEN PHARMA",E$2:E$79) -> 0
C115: BIOCODEX | E115: =SUMIF(A$2:A$79,"BIOCODEXA",E$2:E$79) -> 0
C117: GILEAD SCIENCES | E117: =SUMIF(A$2:A$79,"GILEAD SCIENCES",E$2:E$79) -> 0

Sheet AVANTAGES
A1: TYPE_AVTG dans Transparence.sante.gouv.fr | B1: TYPE_AVTG (libellé de regroupement)
A2: [Autre] : Participation Evenement Scientifique | B2: Congrès
A3: [Autre] inscription congrès | B3: Inscription
A4: [HEBERGEMENT] | B4: Hébergement
A5: [HOSPITALITE] | B5: Hospitalité
A6: [REPAS] | B6: Repas
A7: [TRANSPORT] | B7: Transport
A8: Acheminement | B8: Transport
A9: AUTRE | B9: Autre
A10: AUTRE (PRECISER) | B10: Autre
A11: AUTRE (PRECISER):[LOCATION DE MATERIEL] | B11: Autre
A12: Autre : [ Forfait journée détude ] | B12: Autre
A13: Autre : [ Forfait journée détude ou forfait congrès ] | B13: Congrès
A14: Autre : [ Forfait journée étude ] | B14: Autre
A15: Autre : [ Inscription ] | B15: Inscription
A16: AUTRE : [ACCOMPAGNEMENT] | B16: Autre
A17: AUTRE : [CONTRAT DE PARTENARIAT - LOCATION DE STAND] | B17: Congrès
A18: AUTRE : [COUTS PAR CENTRE] | B18: Autre
A19: AUTRE : [DEDOMMAGEMENT] | B19: Autre
A20: Autre : [DEJEUNER REUNION] | B20: Repas
A21: AUTRE : [DON EN NATURE] | B21: Autre
A22: Autre : [don] | B22: Autre
A23: AUTRE : [DONS] | B23: Autre
A24: Autre : [ECHANTILLON] | B24: Autre
A25: Autre : [Forfait] | B25: Autre
A26: Autre : [Formation] | B26: Autre
A27: Autre : [FRAIS D'INSCRIPTION] | B27: Inscription
A28: Autre : [HONORAIRE] | B28: Autre
A29: Autre : [Honoraires PdS] | B29: Autre
A30: Autre : [Honoraires] | B30: Repas
A31: Autre : [Hospitalité Evenement Scientifique] | B31: Hospitalité
A32: AUTRE : [HOSPITALITE] | B32: Hospitalité
A33: AUTRE : [INSCRIPTION CONGRÈS SCIENTIFIQUE] | B33: Inscription
A34: Autre : [Inscription Evenement Scientifique] | B34: Inscription
A35: Autre : [Inscription] | B35: Inscription
A36: Autre : [Location de stand] | B36: Congrès
A37: Autre : [note de frais] | B37: Autre
A38: Autre : [Notes de frais] | B38: Autre
A39: AUTRE : [PARTICIPATION EVENEMENT SCIENTIFIQUE] | B39: Congrès
A40: AUTRE : [PAUSE] | B40: Autre
A41: Autre : [Remboursement de frais] | B41: Autre
A42: AUTRE : [REMBOURSEMENT FRAIS LOGISTIQUE] | B42: Autre
A43: Autre : [Remis Publication scientifique] | B43: Autre
A44: Autre : [rémunération] | B44: Repas
A45: Autre : [Restauration] | B45: Repas
A46: Autre : [stand] | B46: Congrès
A47: Autre : cheque | B47: Autre
A48: AUTRE : CONGRES | B48: Autre
A49: AUTRE : DEJEUNER | B49: Repas
A50: AUTRE : DEUX PAUSES | B50: Repas
A51: AUTRE : DINER | B51: Repas
A52: AUTRE : DON DE MÉDICAMENT | B52: Autre
A53: autre : enquête internet | B53: Autre
A54: autre : enquête téléphonique | B54: Autre
A55: AUTRE : FORMATION MEDICALE CONTINUE | B55: Autre
A56: AUTRE : FRAIS DE RESTAURATION / RP | B56: Repas
A57: Autre : Frais d'inscription Congres | B57: Inscription
A58: Autre : Frais d'inscription Congrès | B58: Inscription
A59: AUTRE : HONORAIRE | B59: Autre
A60: AUTRE : HONORAIRE CONFERENCE TELEPHONIQUE | B60: Autre
A61: AUTRE : HONORAIRES | B61: Autre
A62: AUTRE : HONORAIRES CONFERENCE TELEPHONIQUE | B62: Autre
A63: AUTRE : HONORAIRES ETUDES | B63: Autre
A64: AUTRE : HONORAIRES REUNION | B64: Autre
A65: AUTRE : HOSPITALITE CONGRES | B65: Congrès
A66: AUTRE : HOSPITALITE STAFF | B66: Hospitalité
A67: Autre : Indemnite | B67: Autre
A68: Autre : Inscription | B68: Inscription
A69: Autre : LOCATION STAND | B69: Autre
A70: AUTRE : PRÊT | B70: Autre
A71: AUTRE : RELATIONS NORMALES DE TRAVAIL | B71: Autre
A72: AUTRE : REMBOURSEMENT DE FRAIS | B72: Autre
A73: AUTRE : REMUNERATION | B73: Autre
A74: AUTRE : REPAS PROFESSIONNEL | B74: Repas
A75: Autre : repas STAFF | B75: Repas
A76: AUTRE : REUNION | B76: Autre
A77: AUTRE : RNT | B77: Autre
A78: AUTRE : STAFF | B78: Repas
A79: AUTRE : STAND CONGRES | B79: Congrès
A80: Autre : Supports formation | B80: Autre
A81: Autre : surcoûts direction hospitalière | B81: Autre
A82: AUTRE :REMUNERATION | B82: Autre
A83: AUTRE [DINER REUNION] | B83: Repas
A84: AUTRE [DONS] | B84: Autre
A85: AUTRE [ENQUETE] | B85: Autre
A86: AUTRE [FRAIS D INSCRIPTION] | B86: Inscription
A87: AUTRE [INSCRIPTION] | B87: Inscription
A88: AUTRE [PAUSE] | B88: Autre
A89: AUTRE [RESTAURATION STAFF] | B89: Repas
A90: AUTRE: [DON] | B90: Autre
A91: AUTRE: [DONS] | B91: Autre
A92: Autre: [Enquête] | B92: Autre
A93: AUTRE: [HEBERGEMENT ET RESTAURATIONS] | B93: Hébergement
A94: AUTRE: [INSCRIPTION] | B94: Inscription
A95: AUTRE: [LIVRE A BUT PEDAGOGIQUE] | B95: Autre
A96: AUTRE: COLLATION | B96: Repas
A97: AUTRE: COLLATION/COLLATION | B97: Repas
A98: AUTRE: CONGRES/COCKTAIL | B98: Repas
A99: AUTRE: CONGRES/INSCRIPTION | B99: A définir
A100: AUTRE: DEJEUNER | B100: Repas
A101: AUTRE: DEJEUNER/DINER | B101: Repas
A102: AUTRE: DEJEUNER/RESTO ITALIEN BON | B102: Repas
A103: Autre: Don | B103: Autre
A104: AUTRE: HOSPITALITE | B104: Hospitalité
A105: AUTRE: INDEMNITE | B105: Autre
A106: AUTRE: INSCRIPTION | B106: Inscription
A107: Autre: Phone consult | B107: Autre
A108: AUTRE: SOIREE | B108: Hospitalité
A109: AUTRE: SOIREE/SOIREE | B109: Autre
A110: AUTRE: STAFF | B110: Repas
A111: AUTRE: VISITE/(2 X GO-ON 25MG) | B111: Autre
A112: AUTRE: VISITE/(3 X GO-ON 25MG) | B112: Autre
A113: AUTRE: VISITE/GO-ON 25MG | B113: Autre
A114: AUTRE:[FRAIS D'INSCRIPTION] | B114: Inscription
A115: AUTRE:[FRAIS FIXES CONVENTION] | B115: Autre
A116: Autre:[REMUNERATION] | B116: Autre
A117: AUTRE:[SURCOUTS HOSPITALIERS] | B117: Autre
A118: AUTRE:RECHERCHE | B118: Autre
A119: Autre[HONORAIRES] | B119: Autre
A120: Autre[inscription congrès] | B120: Congrès
A121: AUTRES | B121: Autre
A122: AUTRES : REMBOURSEMENT DE FRAIS | B122: Autre
A123: AUTRES: INSCRIPTION | B123: Inscription
A124: CADEAUX | B124: Autre
A125: COLLATION | B125: Repas
A126: COLLATION/COLLATION | B126: Repas
A127: CONGRES/ACHEMINEMENT (AVION) | B127: Transport
A128: CONGRES/DEJEUNERS / DINERS (4) | B128: Repas
A129: CONGRES/HEBERGEMENT | B129: Hébergement
A130: CONGRES/HEBERGEMENT (1 NUITEES) | B130: Hébergement
A131: CONGRES/HEBERGEMENT (2 NUITEES) | B131: Hébergement
A132: CONGRES/HEBERGEMENT 3 NUITS | B132: Hébergement
A133: CONGRES/INSCRIPTION | B133: Inscription
A134: CONGRES/REPAS 12.06.13 | B134: Repas
A135: CONGRES/REPAS 13.06.13 | B135: Repas
A136: CONGRES/REPAS 14.06.13 | B136: Repas
A137: CONGRES/REPAS X3 | B137: Repas
A138: conseil | B138: Autre
A139: Conseil - Intervention Ponctuelle | B139: Autre
A140: Dédommagement | B140: Autre
A141: DEJEUNER | B141: Repas
A142: déjeuner | B142: Repas
A143: DEJEUNER/DEJEUNER | B143: Repas
A144: DEJEUNER/REPAS | B144: Repas
A145: Déplacement | B145: Transport
A146: DINER | B146: Repas
A147: Dîner | B147: Repas
A148: DOCUMENTATION | B148: Autre
A149: Don | B149: Autre
A150: DON / SUBVENTION | B150: Autre
A151: DON DE MATERIEL POUR ETUDE CLINIQUE | B151: Autre
A152: DONS | B152: Autre
A153: Dons de fonctionnement | B153: Autre
A154: DONS DE FONCTIONNEMENT (RÉMUNÉRATION LIÉE À DES ACTIVITÉS DE RECHERCHE) | B154: Autre
A155: DONS DE FONCTIONNEMENT / RECHERCHE | B155: Autre
A156: DONS DE MATERIEL | B156: Autre
A157: Dons de matériel | B157: Autre
A158: Droits d'auteur pris en charge par UCB | B158: Autre
A159: Echantillon récipient de cryoconservation Nalgene Mister Frosty | B159: Autre
A160: enquête | B160: Autre
A161: EPU | B161: Repas
A162: EPU/DINER | B162: Repas
A163: EPU/EPU | B163: Congrès
A164: EPU/REPAS | B164: Repas
A165: FRAIS DE BOUCHE | B165: Repas
A166: Frais de dÃƒÂ©placement | B166: Transport
A167: FRAIS DE DEPLACEMENT | B167: Transport
A168: FRAIS DE RESTAURATION | B168: Repas
A169: FRAIS D'HOSPITALITÉ | B169: Hospitalité
A170: FRAIS D'INSCRIPTION | B170: Inscription
A171: Frais d'inscription à une réunion scientifique | B171: Inscription
A172: FRAIS RELATIFS A LA RECHERCHE IMPLIQUANT LA PERSONNE HUMAINE | B172: Autre
A173: Frais remboursés (transport) | B173: Transport
A174: H‚bergement | B174: Hébergement
A175: HÃ©bergement | B175: Hébergement
A176: HÃ‰BERGEMENT | B176: Hébergement
A177: HÃƒÂ©bergement | B177: Hébergement
A178: HEBERGEMENT | B178: Hospitalité
A179: HEBERGEMENT | B179: Hébergement
A180: Hébergement | B180: Hébergement
A181: Hébérgement | B181: Hébergement
A182: HEBERGEMENT SUR TOUTE LA DUREE DU CONGRES | B182: Hébergement
A183: Hébergement, restauration, transport | B183: Hospitalité
A184: Honoraire + hospitalité | B184: Hospitalité
A185: HONORAIRE HCP | B185: Autre
A186: HONORAIRES | B186: Autre
A187: Honoraires de consultant | B187: Autre
A188: HOSPITALITE | B188: Hospitalité
A189: HOSPITALITÉ | B189: Hospitalité
A190: HOSPITALITE - RELATIONS NORMALES DE TRAVAIL | B190: Hospitalité
A191: Hospitalité [ transport/repas/Hébergement] | B191: Hospitalité
A192: HOSPITALITE CONGRES | B192: Hospitalité
A193: Hospitalité Congrès Symposium | B193: Congrès
A194: HOSPITALITE REUNION PROFESSIONNELLE | B194: Hospitalité
A195: HOSPITALITE SITES PIERRE FABRE | B195: Hospitalité
A196: HOSPITALITE STAFF | B196: Hospitalité
A197: INCRIPTION | B197: Inscription
A198: INDEMNITE | B198: Autre
A199: INSCRIPTION | B199: Inscription
A200: Inscription à un congrès | B200: Congrès
... 55 more rows

Sheet CONVENTIONS
A1: TYPE_CONVENTION dans Transparence.sante.gouv.fr | B1: TYPE_CONVENTION (libellé de regroupement)
A2: [AUTRE] : [COLLABORATION SCIENTIFIQUE] | B2: Expert
A3: [AUTRE] : [CONVENTION HOSPITALITE] | B3: Hospitalité
A4: [AUTRE] : [CONVENTION HOSPITALITE] | B4: Hospitalité
A5: [BOARD EXPERTS] | B5: Réunion de « Board »
A6: [FORMATION] | B6: Autre
A7: [MARKETING] | B7: Etude de marché
A8: [MARKETING] | B8: Etude de marché
A9: [ORATEUR] | B9: Orateur
A10: [ORATEURS MODERATEURS] | B10: Orateur
A11: [ORATEURS MODERATEURS] | B11: Orateur
A12: [REUNION INFORMATION MEDICALE] | B12: Réunion professionnelle
A13: 26E CONGRES FRANÇAIS DE RHUMATOLOGIE | B13: Réunion professionnelle
A14: ACCORD DE COOPERATION | B14: Expert
A15: Achat / location d'espace publicitaire | B15: Conseil
A16: Achat / location d'espace publicitaire | B16: Autre
A17: Achat / location d'espaces dans le cadre d'événements scientifiques | B17: Autre
A18: Achat / location d'espaces dans le cadre d'événements scientifiques | B18: Autre
A19: Achat de documentation scientifique | B19: Conseil
A20: AMERICAN COLLEGE OF RHEUMATHOLOGY ACR/ARHP ANNUAL MEETING 2012 | B20: Réunion professionnelle
A21: ANNUAL EUROPEAN CONGRESS OF RHEUMATOLOGY | B21: Réunion professionnelle
A22: ASSISES BARCELONE | B22: Réunion professionnelle
A23: ATELIERS SIMS | B23: Réunion professionnelle
A24: AUTRE | B24: Autre
A25: AUTRE | B25: Autre
A26: Autre : | B26: Autre
A27: Autre : "CONTRAT D'ORATEUR" | B27: Orateur
A28: Autre : [ Collaboration Scientifique ] | B28: Expert
A29: Autre : [ Collaboration Scientifique ] | B29: Expert
A30: AUTRE : [ CONSEIL / EXPERTISE SCIENTIFIQUE ] | B30: Conseil
A31: Autre : [ EPU ] | B31: Réunion professionnelle
A32: Autre : [ EPU ] | B32: Réunion professionnelle
A33: Autre : [ Expert ] | B33: Expert
A34: Autre : [ Expert ] | B34: Expert
A35: AUTRE : [ HOSPITALITE ] | B35: Hospitalité
A36: AUTRE : [ HOSPITALITE ] | B36: Hospitalité
A37: Autre : [ hospitalité ] | B37: Hospitalité
A38: Autre : [ hospitalité liée à une manifestation scientifique ] | B38: Hospitalité
A39: Autre : [ hospitalité liée à une manifestation scientifique ] | B39: Hospitalité
A40: Autre : [ Manifestation professionnelle ] | B40: Réunion professionnelle
A41: Autre : [ Manifestation professionnelle ] | B41: Réunion professionnelle
A42: Autre : [ Orateur / Intervenant ] | B42: Orateur
A43: Autre : [ Orateur / Intervenant ] | B43: Orateur
A44: Autre : [ Orateur ] | B44: Orateur
A45: Autre : [ Partenariat ] | B45: Autre
A46: Autre : [ Prestation ] | B46: Conseil
A47: Autre : [ R‚union professionnelle ] | B47: Réunion professionnelle
A48: Autre : [ R‚union professionnelle ] | B48: Réunion professionnelle
A49: Autre : [ Runion professionnelle ] | B49: Réunion professionnelle
A50: Autre : [ Runion professionnelle ] | B50: Réunion professionnelle
A51: Autre : [ Reunion professionnelle ] | B51: Réunion professionnelle
A52: Autre : [ Réunion professionnelle ] | B52: Réunion professionnelle
A53: Autre : [ Reunion professionnelle ] | B53: Réunion professionnelle
A54: Autre : [ Réunion professionnelle ] | B54: Réunion professionnelle
A55: Autre : [AUTRE: PRESTATION DE SERVICES] | B55: Conseil
A56: Autre : [AUTRE] : [CONTRAT DE COLLABORATION] | B56: Autre
A57: Autre : [AUTRE] : [CONVENTION HOSPITALITE] | B57: Hospitalité
A58: Autre : [BOARD EXPERTS] | B58: Expert
A59: Autre : [collaboration scientifique] | B59: Expert
A60: Autre : [Communication scientifique] | B60: Expert
A61: Autre : [Communication scientifique] | B61: Conseil
A62: Autre : [Consultant (HCP)] | B62: Conseil
A63: Autre : [Consultant (HCP)] | B63: Conseil
A64: Autre : [Consultant] | B64: Conseil
A65: Autre : [Contrat autre] | B65: Autre
A66: Autre : [Contrat autre] | B66: Autre
A67: AUTRE : [CONTRAT DE COLLABORATION SCIENTIFIQUE] | B67: Expert
A68: AUTRE : [CONTRAT DE COLLABORATION SCIENTIFIQUE] | B68: Expert
A69: AUTRE : [CONTRAT DE CONSEIL & PRESTATION] | B69: Conseil
A70: AUTRE : [CONTRAT DE CONSEIL & PRESTATION] | B70: Conseil
A71: Autre : [Contrat de consultant] | B71: Conseil
A72: AUTRE : [CONTRAT DE PARTENARIAT - LOCATION DE STAND] | B72: Réunion professionnelle
A73: AUTRE : [CONTRAT DE PARTENARIAT - LOCATION DE STAND] | B73: Réunion professionnelle
A74: AUTRE : [CONTRAT DE PARTENARIAT] | B74: Autre
A75: AUTRE : [CONTRAT D'ORATEUR] | B75: Orateur
A76: AUTRE : [CONTRAT D'ORATEUR] | B76: Orateur
A77: Autre : [CONTRAT ORATEUR] | B77: Orateur
A78: Autre : [CONTRAT_DE_PRESTATIONS_DE_SERVICES] | B78: Conseil
A79: AUTRE : [CONVENTION D HOSPITALITE] | B79: Hospitalité
A80: AUTRE : [CONVENTION D HOSPITALITE] | B80: Hospitalité
A81: Autre : [Convention d’Hospitalité] | B81: Hospitalité
A82: Autre : [Convention de consultant] | B82: Conseil
A83: Autre : [CONVENTION D'HOSPITALITE] | B83: Hospitalité
A84: Autre : [Convention d'Hospitalité] | B84: Hospitalité
A85: Autre : [CONVENTION D'HOSPITALITE] | B85: Hospitalité
A86: Autre : [Convention d'hospitalité] | B86: Hospitalité
A87: AUTRE : [CONVENTION HOSPITALITE] | B87: Hospitalité
A88: Autre : [Convention Orateur] | B88: Orateur
A89: AUTRE : [CONVENTION SANS REMUNERATION]. | B89: Autre
A90: AUTRE : [DONS] | B90: Autre
A91: Autre : [entretien] | B91: Etude de marché
A92: Autre : [entretien] | B92: Etude de marché
A93: Autre : [Espace publicitaire] | B93: Autre
A94: Autre : [Espace publicitaire] | B94: Autre
A95: AUTRE : [ETUDE CLINIQUE] | B95: Recherche Clinique
A96: Autre : [ETUDE DE MARCHE] | B96: Etude de marché
A97: Autre : [EXPERT CONSULTANT] | B97: Expert
A98: Autre : [Expertise] | B98: Expert
A99: Autre : [Face face] | B99: Autre
A100: AUTRE : [HOSPITALITÉ EVENEMENT SCIENTIFIQUE] | B100: Hospitalité
A101: Autre : [Hospitalité Evenement] | B101: Hospitalité
A102: AUTRE : [HOSPITALITE EVENEMENT] | B102: Hospitalité
A103: Autre : [Hospitalité Evenement] | B103: Hospitalité
A104: Autre : [Hospitalité Genzyme] | B104: Hospitalité
A105: Autre : [Hospitalité] | B105: Hospitalité
A106: AUTRE : [INTERVENANT] | B106: A définir
A107: AUTRE : [INTERVENANT] | B107: Orateur
A108: Autre : [Invitation individuelle] | B108: Autre
A109: Autre : [Invitation individuelle] | B109: Autre
A110: Autre : [Location de stand / Congrès / Autre] | B110: Réunion professionnelle
A111: Autre : [Marketing] | B111: Etude de marché
A112: Autre : [Marketing] | B112: Etude de marché
A113: Autre : [Opération SA/Journée-Soirée] | B113: Autre
A114: Autre : [Opérations Genzyme] | B114: Autre
A115: Autre : [Orateur] | B115: Orateur
A116: Autre : [Orateur] | B116: Orateur
A117: Autre : [ORATEURS MODERATEURS] | B117: Orateur
A118: AUTRE : [PARTENARIAT] | B118: Autre
A119: AUTRE : [PARTICIPATION RÉUNION SCIENTIFIQUE] | B119: Réunion professionnelle
A120: AUTRE : [PARTICIPATION RÉUNION SCIENTIFIQUE] | B120: Réunion professionnelle
A121: AUTRE : [PARTICIPATION R�ION SCIENTIFIQUE] | B121: Réunion professionnelle
A122: AUTRE : [PARTICIPATION R�ION SCIENTIFIQUE] | B122: Réunion professionnelle
A123: AUTRE : [PRESTATION DE SERVICE] | B123: Conseil
A124: Autre : [Recherche biomédicale] | B124: Recherche Clinique
A125: Autre : [Recherche biomédicale] | B125: Recherche Clinique
A126: Autre : [Recherche/Développement] | B126: Recherche Clinique
A127: Autre : [Recherche/Développement] | B127: Recherche Clinique
A128: Autre : [RECHERCHE] | B128: Recherche Clinique
A129: Autre : [Rédaction d'articles scientifiques] | B129: Rédacteur
A130: Autre : [Repas] | B130: Hospitalité
A131: Autre : [Réunion] | B131: Réunion professionnelle
A132: Autre : [Réunion] | B132: Réunion professionnelle
A133: Autre : [RP Prédéclarée Hospitalité] | B133: Hospitalité
A134: AUTRE : [RP Table ronde actu Rhumatologie] | B134: Réunion professionnelle
A135: AUTRE : [RP TFI] | B135: Orateur
A136: Autre : [STAFF] | B136: Réunion professionnelle
A137: Autre : [STAFF] | B137: Réunion professionnelle
A138: AUTRE : [STAND/TABLE] | B138: Réunion professionnelle
A139: Autre : 11EMES BIENNALES MONEGASQUES | B139: Réunion professionnelle
A140: Autre : 3116001; site 101; | B140: Autre
A141: Autre : ABONNEMENT | B141: Autre
A142: Autre : ABONNEMENT | B142: Autre
A143: Autre : ABONNEMENT PRESSE PROFESSIONNELLE | B143: Autre
A144: Autre : Accord d'Orateur | B144: Orateur
A145: Autre : Accord d'Orateur | B145: Orateur
A146: Autre : ACHAT / LOCATION DE STAND | B146: Autre
A147: Autre : achat d'espace publicitaire01/ | B147: Conseil
A148: Autre : ACHAT/LOCATION DE STAND | B148: Autre
A149: Autre : Achats d'espaces publicitaires | B149: Conseil
A150: Autre : Auteur - rédacteur | B150: Rédacteur
A151: Autre : AUTRE | B151: Autre
A152: Autre : AUTRE | B152: Autre
A153: Autre : AUTRE - PRECISER EN COLONNE AK | B153: Autre
A154: Autre : AUTRE / HOSPITALITES | B154: Hospitalité
A155: Autre : AUTRE / STAND | B155: Réunion professionnelle
A156: Autre : AUTRE / STAND | B156: Autre
A157: Autre : Autre : | B157: Autre
A158: Autre : AUTRE : [ CONSEIL / EXPERTISE SCIENTIFIQUE ] | B158: Conseil
A159: Autre : Autre : [ CONVENTION_D_HOSPITALITÉ ] | B159: Hospitalité
A160: Autre : Autre : [ CONVENTION_DE_BOARD ] | B160: Réunion de « Board »
A161: Autre : Autre : [ EPU ] | B161: Réunion professionnelle
A162: Autre : Autre : [ Expert ] | B162: Expert
A163: Autre : Autre : [ Expert ] | B163: Expert
A164: Autre : AUTRE : [ HOSPITALITE ] | B164: Hospitalité
A165: Autre : Autre : [ hospitalité liée à une manifestation scientifique ] | B165: Hospitalité
A166: Autre : Autre : [ Location de stand ] | B166: Réunion professionnelle
A167: Autre : Autre : [ Manifestation professionnelle ] | B167: Réunion professionnelle
A168: Autre : Autre : [ Manifestation professionnelle ] | B168: Réunion professionnelle
A169: Autre : Autre : [ Orateur / Intervenant ] | B169: Orateur
A170: Autre : Autre : [ Orateur / Intervenant ] | B170: Orateur
A171: Autre : Autre : [ Parrainage ] | B171: Autre
A172: Autre : Autre : [ Partenariat ] | B172: Autre
A173: Autre : Autre : [ Prestation ] | B173: Conseil
A174: Autre : AUTRE : [ RECHERCHE SCIENTIFIQUE ] | B174: Recherche Clinique
A175: Autre : Autre : [ Reunion professionnelle ] | B175: Réunion professionnelle
A176: Autre : Autre : [ Réunion professionnelle ] | B176: Réunion professionnelle
A177: Autre : Autre : [ Reunion professionnelle ] | B177: Réunion professionnelle
A178: Autre : Autre : [ Réunion professionnelle ] | B178: Réunion professionnelle
A179: Autre : AUTRE : [ABONNEMENT] | B179: Autre
A180: Autre : AUTRE : [ABONNEMENT] | B180: Autre
A181: Autre : Autre : [Autre] | B181: Autre
A182: Autre : AUTRE : [AUTRE]: COMMUNICATION | B182: Conseil
A183: Autre : AUTRE : [AVENANT ENQUETE] | B183: Etude de marché
A184: Autre : Autre : [collaboration scientifique à titre gratuit] | B184: Expert
A185: Autre : Autre : [Collaboration Scientifique non remuneree] | B185: Expert
A186: Autre : AUTRE : [COLLABORATION SCIENTIFIQUE] | B186: Expert
A187: Autre : Autre : [Collaboration Scientifique] | B187: Expert
A188: Autre : Autre : [Communication scientifique] | B188: Expert
A189: Autre : Autre : [Communication scientifique] | B189: Expert
A190: Autre : Autre : [Conseil communication] | B190: Conseil
A191: Autre : Autre : [Consultant (HCP)] | B191: Conseil
A192: Autre : Autre : [Consultant (HCP)] | B192: Conseil
A193: Autre : AUTRE : [CONSULTANT] | B193: Conseil
A194: Autre : Autre : [Contrat autre] | B194: Autre
A195: Autre : AUTRE : [CONTRAT DE COLLABORATION SCIENTIFIQUE] | B195: Expert
A196: Autre : AUTRE : [CONTRAT DE COLLABORATION] | B196: Expert
A197: Autre : Autre : [Contrat de conseil & prestation] | B197: Conseil
A198: Autre : AUTRE : [CONTRAT DE CONSEIL & PRESTATION] | B198: Conseil
A199: Autre : Autre : [Contrat de conseilprestation] | B199: Conseil
A200: Autre : Autre : [CONTRAT DE CONSULTANT] | B200: Conseil
... 745 more rows

Sheet FIRMES
A1: FIRME dans Transparence.sante.gouv.fr | B1: FIRME (libellé de regroupement)
A2: 22 Juillet Conseil | B2: 22 Juillet Conseil
A3: 2AMD | B3: 2AMD
A4: 3-D Matrix Europe SAS | B4: 3-D Matrix Europe SAS
A5: 3M Belgium bvba/sprl | B5: 3M
A6: 3M Deutschland GmbH | B6: 3M
A7: 3M France | B7: 3M
A8: 3M MAROC | B8: 3M
A9: 3M United Kingdom PLC | B9: 3M
A10: 3S ASSISTANCE | B10: 3S ASSISTANCE
A11: 3S ORTHO | B11: 3S ORTHO
A12: 4 MED FRANCE | B12: 4 MED FRANCE
A13: 42 market research | B13: 42 market research
A14: 4SC AG | B14: 4SC AG
A15: 4Tech Cardio Ltd | B15: 4Tech Cardio Ltd
A16: 7 MED INDUSTRIE | B16: 7 MED INDUSTRIE
A17: A a Z SANTE | B17: A a Z SANTE
A18: A DEC INTERNATIONAL INC | B18: A DEC INTERNATIONAL INC
A19: A.I.R. | B19: A.I.R.
A20: A.L.A.I.R. | B20: A.L.A.I.R.
A21: A.MENARINI diagnostics | B21: A.MENARINI diagnostics
A22: A.R.C. Pharma | B22: A.R.C. Pharma
A23: A.V.D. | B23: A.V.D.
A24: A+A | B24: A+A
A25: a2m rehateam | B25: a2m rehateam
A26: AADAIRC | B26: AADAIRC
A27: AB SCIENCE | B27: AB SCIENCE
A28: ABBOTT FRANCE | B28: ABBOTT
A29: ABBOTT HEALTHCARE SAS | B29: ABBOTT
A30: ABBOTT MEDICAL FRANCE SAS | B30: ABBOTT
A31: ABBOTT PRODUCTS SAS | B31: ABBOTT
A32: AbbVie | B32: AbbVie
A33: AbbVie AB | B33: AbbVie
A34: AbbVie AG | B34: AbbVie
A35: AbbVie Biopharmaceuticals | B35: AbbVie
A36: AbbVie Biopharmaceuticals GmbH | B36: AbbVie
A37: AbbVie Biopharmaceuticals GmbH Estonian branch | B37: AbbVie
A38: AbbVie Deutschland GmbH & Co. KG | B38: AbbVie
A39: AbbVie GK | B39: AbbVie
A40: AbbVie GmbH | B40: AbbVie
A41: AbbVie Inc. Headquarters | B41: AbbVie
A42: AbbVie Limited | B42: AbbVie
A43: AbbVie Ltd | B43: AbbVie
A44: ABBVIE S.A.R.L. | B44: AbbVie
A45: AbbVie SA/NV | B45: AbbVie
A46: AbbVie Spain S.L.U. | B46: AbbVie
A47: AbbVie SRL | B47: AbbVie
A48: AbbVie, Lda | B48: AbbVie
A49: ABENA-FRANTEX | B49: ABENA-FRANTEX
A50: Abiomed GmbH | B50: Abiomed GmbH
A51: ABIVAX | B51: ABIVAX
A52: ABLATECH | B52: ABLATECH
A53: Ablynx NV | B53: Ablynx NV
A54: ABM | B54: ABM
A55: abmedica | B55: abmedica
A56: ABS-ALBYN MEDICAL | B56: ABS-ALBYN MEDICAL
A57: ABS-Bolton Medical | B57: ABS-Bolton Medical
A58: Acacia Pharma Ltd | B58: Acacia Pharma Ltd
A59: ACCELERATE DIAGNOSTICS | B59: ACCELERATE DIAGNOSTICS
A60: Accès Médical | B60: Accès Médical
A61: accomed | B61: accomed
A62: ACCORD HEALTHCARE FRANCE SAS | B62: ACCORD HEALTHCARE FRANCE SAS
A63: ACCOVION SARL | B63: ACCOVION SARL
A64: Accuray Europe | B64: Accuray Europe
A65: ACIST Europe BV | B65: ACIST Europe BV
A66: ACM | B66: ACM
A67: Acorda Therapeutics, Inc. | B67: Acorda Therapeutics, Inc.
A68: ACOUSTIQUE MEDICAL DU LITTORAL | B68: ACOUSTIQUE MEDICAL DU LITTORAL
A69: ACOUSTIQUE WERNERT | B69: ACOUSTIQUE WERNERT
A70: ACS-Agence Conseil Santé | B70: ACS-Agence Conseil Santé
A71: ACT+ Consulting | B71: ACT+ Consulting
A72: ACTAVIS GROUP PTC EHF | B72: ACTAVIS GROUP PTC EHF
A73: Actelion Pharmaceuticals France | B73: Actelion
A74: Actelion Pharmaceuticals Ltd | B74: Actelion
A75: ACTION D'ECLAT | B75: ACTION D'ECLAT
A76: ACTION-COEUR | B76: ACTION-COEUR
A77: Active Research | B77: Active Research
A78: ACUITISFRANCE | B78: ACUITISFRANCE
A79: Ad Scientiam | B79: Ad Scientiam
A80: ADAIR | B80: ADAIR
A81: adam sante | B81: adam sante
A82: ADAPSIA | B82: ADAPSIA
A83: Adaptimmune LTD | B83: Adaptimmune LTD
A84: Adaptive Biotechnologies Inc | B84: Adaptive Biotechnologies Inc
A85: ADARE PHARMACEUTICALS SAS | B85: ADARE PHARMACEUTICALS SAS
A86: ADDMEDICA | B86: ADDMEDICA
A87: ADEP ASSISTANCE | B87: ADEP ASSISTANCE
A88: Adept Field Solutions | B88: Adept Field Solutions
A89: ADIR ASSISTANCE | B89: ADIR ASSISTANCE
A90: Adiral Assistance | B90: Adiral Assistance
A91: ADIRAL Association d'Aide aux Traitements À Domicile | B91: ADIRAL Association d'Aide aux Traitements À Domicile
A92: ADIRAL Association d'Aide aux Traitements Ã Domicile | B92: ADIRAL Association d'Aide aux Traitements Ã Domicile
A93: ADLER ORTHO France | B93: ADLER ORTHO France
A94: Adler Ortho srl | B94: Adler Ortho srl
A95: ADMEDUS GmbH | B95: ADMEDUS GmbH
A96: ADOUR SANTE | B96: ADOUR SANTE
A97: ADS ALSACE | B97: ADS ALSACE
A98: ADS CHAMPAGNE ARDENNE | B98: ADS CHAMPAGNE ARDENNE
A99: ADS LORRAINE | B99: ADS LORRAINE
A100: ADSM | B100: ADSM
A101: ADVANCE SAS | B101: ADVANCE SAS
A102: Advanced Accelerator Applications | B102: Advanced Accelerator Applications
A103: Advanced Accelerator Applications International SA | B103: Advanced Accelerator Applications International SA
A104: Advanced Accelerator Applications US | B104: Advanced Accelerator Applications US
A105: ADVANCED BIONICS SARL | B105: ADVANCED BIONICS SARL
A106: Advanced Medical Services, AMS GmbH | B106: Advanced Medical Services, AMS GmbH
A107: ADVICENNE | B107: ADVICENNE
A108: Aegerion Pharmaceuticals | B108: Aegerion Pharmaceuticals
A109: Aepodia France SARL | B109: Aepodia France SARL
A110: AERIS Medical SAS | B110: AERIS Medical SAS
A111: AERIS SANTE | B111: AERIS SANTE
A112: AEROGEN | B112: AEROGEN
A113: AESCULAPE CRO BELGIUM BVBA | B113: AESCULAPE CRO BELGIUM BVBA
A114: AFFINITES SANTE | B114: AFFINITES SANTE
A115: Agence Conseil 3P | B115: Agence Conseil 3P
A116: agence européenne informatique | B116: agence européenne informatique
A117: Agence Profil Organisation | B117: Agence Profil Organisation
A118: Agfa HealthCare France SA | B118: Agfa HealthCare France SA
A119: AGFA Healthcare Imaging Agents France | B119: AGFA Healthcare Imaging Agents France
A120: AGILENT TECHNOLOGIES FRANCE | B120: AGILENT TECHNOLOGIES FRANCE
A121: AGIPHARM | B121: AGIPHARM
A122: AGIR À dom Assistance | B122: AGIR À dom Assistance
A123: AGIR Ã dom Assistance | B123: AGIR Ã dom Assistance
A124: Aide aux Insuffisants Respiratoires de la Région Auvergne (A.I.R.R.A.) | B124: Aide aux Insuffisants Respiratoires de la Région Auvergne (A.I.R.R.A.)
A125: AIR A DOMICILE | B125: AIR A DOMICILE
A126: AIR DE BRETAGNE | B126: AIR DE BRETAGNE
A127: AIR DOMICILE SANTE ALPES | B127: AIR DOMICILE SANTE ALPES
A128: AIR DOMICILE VALLEE DU RHONE | B128: AIR DOMICILE VALLEE DU RHONE
A129: Air Liquide European Homecare Operations Services | B129: Air Liquide
A130: AIR LIQUIDE MEDICAL SYSTEMS | B130: Air Liquide
A131: AIR LIQUIDE SANTE (INTERNATIONAL) | B131: Air Liquide
A132: AIR LIQUIDE SANTE FRANCE | B132: Air Liquide
A133: AIR PLUS | B133: AIR PLUS
A134: air products | B134: air products
A135: AIR SANTE | B135: AIR SANTE
A136: AIRE | B136: AIRE
A137: AIREL | B137: AIREL
A138: AIRO2 SANTE | B138: AIRO2 SANTE
A139: AIXIAL | B139: AIXIAL
A140: AIXPER'F | B140: AIXPER'F
A141: AJ4MED | B141: AJ4MED
A142: AJR MEDICAL | B142: AJR MEDICAL
A143: AKCEA THERAPEUTICS FRANCE | B143: AKCEA THERAPEUTICS FRANCE
A144: AKCEA THERAPEUTICS INK | B144: AKCEA THERAPEUTICS INK
A145: ALAIN AFFLELOU FRANCHISEUR | B145: ALAIN AFFLELOU FRANCHISEUR
A146: ALAIR & AVD | B146: ALAIR & AVD
A147: Albireo AB | B147: Albireo AB
A148: Alcimed GmbH | B148: Alcimed
A149: Alcimed Inc | B149: Alcimed
A150: Alcimed SARL | B150: Alcimed
A151: Alcimed SAS | B151: Alcimed
A152: Alcimed Sprl | B152: Alcimed
A153: Alcura France | B153: Alcura France
A154: ALCYON FRANCE | B154: ALCYON FRANCE
A155: ALERE E-SANTE SAS | B155: ALERE E-SANTE SAS
A156: ALERE SAS | B156: ALERE SAS
A157: Alexion Pharma France | B157: Alexion Pharma France
A158: ALFA WASSERMANN PHARMA | B158: ALFA WASSERMANN PHARMA
A159: ALFASIGMA FRANCE | B159: ALFASIGMA FRANCE
A160: Align Technology SAS | B160: Align Technology SAS
A161: Alimera Sciences France | B161: Alimera Sciences France
A162: ALISEO | B162: ALISEO
A163: Alizé Pharma SAS | B163: Alizé Pharma SAS
A164: Alizé SantÃ© | B164: Alizé Santé
A165: Alizé Santé | B165: Alizé Santé
A166: ALK-AbellÃ³ | B166: ALK-AbellÃ³
A167: ALK-AbellÓ | B167: ALK-AbellÓ
A168: ALKAPHARM | B168: ALKAPHARM
A169: All Global | B169: All Global
A170: ALLERGAN FRANCE | B170: ALLERGAN
A171: ALLERGAN PHARMACEUTICALS INTERNATIONAL LIMITED | B171: ALLERGAN
A172: alliance healthcare repartition | B172: ALLIANCE
A173: ALLIANCE PHARMA FRANCE | B173: ALLIANCE
A174: ALLIANCE'PERF | B174: ALLIANCE
A175: ALLP MEDITEC | B175: ALLP MEDITEC
A176: ALMIRALL SAS | B176: ALMIRALL SAS
A177: ALMUS | B177: ALMUS
A178: Alnylam France SAS | B178: Alnylam France SAS
A179: Alnylam Pharmaceuticals International | B179: Alnylam Pharmaceuticals International
A180: Alpha-Bio Tec | B180: Alpha-Bio Tec
A181: ALPHATEC SPINE INC | B181: ALPHATEC SPINE INC
A182: ALPHEGA | B182: ALPHEGA
A183: ALPINE SCIENTIFIC | B183: ALPINE SCIENTIFIC
A184: ALSANZA sarl | B184: ALSANZA sarl
A185: ALTEOR | B185: ALTEOR
A186: alveol'air | B186: alveol'air
A187: ALVIMEDICA Medical Technologie France | B187: ALVIMEDICA Medical Technologie France
A188: AM AUDITION | B188: AM AUDITION
A189: AMADEUS SANTE | B189: AMADEUS SANTE
A190: AMB-I SANTE PROVENCE | B190: AMB-I SANTE PROVENCE
A191: AMC APPAREILLAGE ET MATERIEL DE CARDIOLOGIE | B191: AMC APPAREILLAGE ET MATERIEL DE CARDIOLOGIE
A192: American Medical Systems France | B192: American Medical Systems France
A193: American Orthodontics | B193: American Orthodontics
A194: AMGEN SAS | B194: Amgen
A195: AMICUS THERAPEUTICS INC. | B195: AMICUS THERAPEUTICS
A196: AMICUS THERAPEUTICS SAS | B196: AMICUS THERAPEUTICS
A197: AMICUS THERAPEUTICS UK LTD | B197: AMICUS THERAPEUTICS
A198: AMO FRANCE SAS | B198: AMO
A199: AMO Germany GmbH | B199: AMO
A200: AMO INC USA | B200: AMO
... 2574 more rows

Sheet Conception
B2: Concepteur :
D4: François PESTY
D5: Pharmacien, Ancien Interne des Hôpitaux de Paris, Institut Supérieur de Gestion,
D6: Consultant indépendant,
D7: Expert-Conseil en organisation et informatisation du circuit du médicament / Optimisation des approvisionnements et des stocks pharmaceutiques / Pilotage « médico-économique » des médicaments et dispositifs médicaux / Campagne « pilotes » de visites médicalisées des délégués de l’assurance maladie sur le médicament / Pertinence des traitements médicamenteux
D12: 2, square Gay Lussac
D13: 78330 Fontenay le Fleury
D14: Francois.PESTY@Wanadoo.fr
D15: 01 30 45 03 59 / 06 88 89 53 51
B18: François PESTY est membre de l'association FORMINDEP,

Sheet Déplacements
A2: Début | B2: Fin | C2: Signature | D2: Congrès | E2: Lieux | F2: Firme

Sheet Tableaux de synthèse
C3: Synthèse | G3: Avantages perçus | O3: Conventions signées | Z3: Montants des avantages versés par les entreprises - Montants des avantages versés par les entreprises - Montants des avantages versés par les entreprises - Montants des avantages versés | AH3: Nombres d'avantages versés par les entreprises - Nombres d'avantages versés par les entreprises - Nombres d'avantages versés par les entreprises - Nombres d'avantages versés par les entreprises - Nombres d'avantages versés par les entreprises - | AP3: Nombres de conventions signées avec les entreprises - Nombres de conventions signées avec les entreprises - Nombres de conventions signées avec les entreprises - Nombres de conventions signées avec les entreprises - Nombres de conventions signées avec les entreprises -
B4: Bénéficiaire | C4: Total avantages perçus (€) | D4: Nombre d'avantages perçus | E4: Nombre de conventions signées | F4: Rémunérations + montants de conventions | G4: Transport | H4: Hébergement | I4: Repas | J4: Hospitalité | K4: Inscription | L4: Conseil | M4: Congrès | N4: Autre | O4: Hospitalité | P4: Orateur | Q4: Réunion professionnelle | R4: Expert | S4: Conseil | T4: Recherche Clinique | U4: Etude de marché | V4: Formateur | W4: Rédacteur | X4: Réunion de « Board » | Y4: Autre | Z4: MSD France | AA4: EDITION DE L'INTERLIGNE | AB4: SESC | AC4: ARCHIMEDES PHARMA France | AD4: Bayer HealthCare SAS | AE4: LUNDBECK SAS | AF4: GSK | AG4: Cyberonics BVBA | AH4: EDITION DE L'INTERLIGNE | AI4: SESC | AJ4: MSD France | AK4: Bayer HealthCare SAS | AL4: GSK | AM4: ARCHIMEDES PHARMA France | AN4: Cyberonics BVBA | AO4: LUNDBECK SAS | AP4: MYLAN | AQ4: AbbVie | AR4: BIOCODEX | AS4: BIOGARAN | AT4: MSD France | AU4: LEO Pharma | AV4: Janssen-Cilag | AW4: GILEAD SCIENCES | AX4: JUVISE PHARMACEUTICALS | AY4: GENEVRIER | AZ4: Kreussler pharma | BA4: ROCHE DIABETES CARE FRANCE | BB4: ROCHE DIAGNOSTICS FRANCE | BC4: IPSEN | BD4: MENARINI | BE4: Lilly | BF4: RANBAXY PHARMACIE GENERIQUES | BG4: Bristol -Myers Squibb | BH4: Bayer HealthCare SAS | BI4: PHADIA SAS | BJ4: Reckitt Benckiser Healthcare France | BK4: Roche SAS | BL4: SERVIER | BM4: FRESENIUS | BN4: HRA PHARMA FRANCE | BO4: EISAI SAS | BP4: Boehringer Ingelheim | BQ4: SANDOZ | BR4: Grünenthal | BS4: MUNDIPHARMA | BT4: COOPER | BU4: Pierre Fabre Médicament | BV4: Nordic Pharma | BW4: RB Pharmaceuticals France | BX4: BAYER SANTE FAMILIALE | BY4: CCD | BZ4: THEA | CA4: ALK-AbellÓ | CB4: LUNDBECK SAS | CC4: Atlantic Therapeutics | CD4: B.BRAUN MEDICAL SAS | CE4: GE Medical Systems SCS | CF4: Amgen | CG4: Smith & Nephew S.A.S. | CH4: Sanofi Aventis | CI4: FUJIFILM Medical Systems France | CJ4: Leurquin Mediolanum | CK4: DIASORIN SA | CL4: Bailleul | CM4: JALDES | CN4: GIBAUD | CO4: Reckitt Benckiser France | CP4: SOCIETE D'ETUDES ET DE RECHERCHES PHARMACEUTIQUES | CQ4: AUVEX | CR4: Otsuka
B5: DÉCISION & STRATÉGIE SANTÉ | C5: =SUMPRODUCT(('Avantages perçus'!$A$2:$A$30000=B5)*('Avantages perçus'!$F$2:$F$30000)) -> 7445 | D5: =COUNTIFS('Avantages perçus'!$A$2:$A$30000,B5,'Avantages perçus'!$F$2:$F$30000,">0") -> 86 | E5: =COUNTIFS('Conventions signées'!$A$2:$A$15000,B5,'Conventions signées'!$A$2:$A$15000,"*") -> 48 | F5: ='Conventions signées'!G709+Rémunérations!E99 -> 12720 | G5: 0 | H5: 0 | I5: 398 | J5: 4647 | K5: 0 | L5: 0 | M5: 0 | N5: 2400 | O5: 1 | P5: 0 | Q5: 2 | R5: 1 | S5: 20 | T5: 0 | U5: 0 | V5: 0 | W5: 6 | X5: 0 | Y5: 18 | Z5: 42 | AA5: 3046 | AB5: 1440 | AC5: 2400 | AD5: 471 | AE5: 0 | AF5: 46 | AG5: 0 | AH5: 55 | AI5: 24 | AJ5: 3 | AK5: 1 | AL5: 2 | AM5: 1 | AN5: 0 | AO5: 0 | AP5: 0 | AQ5: 0 | AR5: 0 | AS5: 0 | AT5: 6 | AU5: 1 | AV5: 11 | AW5: 12 | AX5: 0 | AY5: 0 | AZ5: 0 | BA5: 0 | BB5: 0 | BC5: 0 | BD5: 0 | BE5: 0 | BF5: 0 | BG5: 4 | BH5: 3 | BI5: 0 | BJ5: 0 | BK5: 3 | BL5: 0 | BM5: 0 | BN5: 0 | BO5: 3 | BP5: 2 | BQ5: 0 | BR5: 0 | BS5: 0 | BT5: 0 | BU5: 0 | BV5: 0 | BW5: 0 | BX5: 0 | BY5: 0 | BZ5: 0 | CA5: 0 | CB5: 0 | CC5: 0 | CD5: 1 | CE5: 1 | CF5: 1 | CG5: 0 | CH5: 0 | CI5: 0 | CJ5: 0 | CK5: 0 | CL5: 0 | CM5: 0 | CN5: 0 | CO5: 0 | CP5: 0 | CQ5: 0 | CR5: 0
B6: QUOTIDIEN DU MÉDECIN | C6: =SUMPRODUCT(('Avantages perçus'!$A$2:$A$30000=B6)*('Avantages perçus'!$F$2:$F$30000)) -> 32732 | D6: =COUNTIFS('Avantages perçus'!$A$2:$A$30000,B6,'Avantages perçus'!$F$2:$F$30000,">0") -> 31 | E6: =COUNTIFS('Conventions signées'!$A$2:$A$15000,B6,'Conventions signées'!$A$2:$A$15000,"*") -> 400 | F6: ='Conventions signées'!G710+Rémunérations!E100 -> 1249279 | G6: 1610 | H6: 207 | I6: 517 | J6: 2528 | K6: 0 | L6: 0 | M6: 0 | N6: 27870 | O6: 2 | P6: 0 | Q6: 121 | R6: 4 | S6: 25 | T6: 0 | U6: 5 | V6: 0 | W6: 125 | X6: 0 | Y6: 118 | Z6: 30184 | AA6: 0 | AB6: 600 | AC6: 0 | AD6: 1928 | AE6: 0 | AF6: 0 | AG6: 20 | AH6: 0 | AI6: 10 | AJ6: 17 | AK6: 3 | AL6: 0 | AM6: 0 | AN6: 1 | AO6: 0 | AP6: 162 | AQ6: 122 | AR6: 20 | AS6: 4 | AT6: 13 | AU6: 0 | AV6: 4 | AW6: 0 | AX6: 0 | AY6: 3 | AZ6: 4 | BA6: 7 | BB6: 3 | BC6: 2 | BD6: 8 | BE6: 8 | BF6: 0 | BG6: 2 | BH6: 0 | BI6: 6 | BJ6: 1 | BK6: 2 | BL6: 5 | BM6: 5 | BN6: 0 | BO6: 0 | BP6: 1 | BQ6: 1 | BR6: 3 | BS6: 2 | BT6: 2 | BU6: 0 | BV6: 0 | BW6: 1 | BX6: 1 | BY6: 1 | BZ6: 2 | CA6: 0 | CB6: 0 | CC6: 0 | CD6: 0 | CE6: 0 | CF6: 0 | CG6: 1 | CH6: 1 | CI6: 1 | CJ6: 1 | CK6: 1 | CL6: 0 | CM6: 0 | CN6: 0 | CO6: 0 | CP6: 0 | CQ6: 0 | CR6: 0
B7: QUOTIDIEN DU PHARMACIEN | C7: =SUMPRODUCT(('Avantages perçus'!$A$2:$A$30000=B7)*('Avantages perçus'!$F$2:$F$30000)) -> 0 | D7: =COUNTIFS('Avantages perçus'!$A$2:$A$30000,B7,'Avantages perçus'!$F$2:$F$30000,">0") -> 0 | E7: =COUNTIFS('Conventions signées'!$A$2:$A$15000,B7,'Conventions signées'!$A$2:$A$15000,"*") -> 168 | F7: ='Conventions signées'!G711+Rémunérations!E101 -> 1126377 | G7: 0 | H7: 0 | I7: 0 | J7: 0 | K7: 0 | L7: 0 | M7: 0 | N7: 0 | O7: 6 | P7: 0 | Q7: 1 | R7: 4 | S7: 17 | T7: 0 | U7: 7 | V7: 1 | W7: 111 | X7: 0 | Y7: 21 | Z7: 0 | AA7: 0 | AB7: 0 | AC7: 0 | AD7: 0 | AE7: 0 | AF7: 0 | AG7: 0 | AH7: 0 | AI7: 0 | AJ7: 0 | AK7: 0 | AL7: 0 | AM7: 0 | AN7: 0 | AO7: 0 | AP7: 103 | AQ7: 1 | AR7: 13 | AS7: 1 | AT7: 0 | AU7: 0 | AV7: 0 | AW7: 0 | AX7: 0 | AY7: 7 | AZ7: 1 | BA7: 2 | BB7: 0 | BC7: 6 | BD7: 0 | BE7: 0 | BF7: 7 | BG7: 0 | BH7: 0 | BI7: 0 | BJ7: 5 | BK7: 0 | BL7: 0 | BM7: 0 | BN7: 5 | BO7: 0 | BP7: 0 | BQ7: 2 | BR7: 0 | BS7: 0 | BT7: 1 | BU7: 2 | BV7: 3 | BW7: 1 | BX7: 1 | BY7: 1 | BZ7: 0 | CA7: 0 | CB7: 0 | CC7: 0 | CD7: 0 | CE7: 0 | CF7: 0 | CG7: 0 | CH7: 0 | CI7: 0 | CJ7: 0 | CK7: 0 | CL7: 1 | CM7: 1 | CN7: 1 | CO7: 1 | CP7: 1 | CQ7: 1 | CR7: 0
B8: SESC | C8: =SUMPRODUCT(('Avantages perçus'!$A$2:$A$30000=B8)*('Avantages perçus'!$F$2:$F$30000)) -> 151488 | D8: =COUNTIFS('Avantages perçus'!$A$2:$A$30000,B8,'Avantages perçus'!$F$2:$F$30000,">0") -> 13 | E8: =COUNTIFS('Conventions signées'!$A$2:$A$15000,B8,'Conventions signées'!$A$2:$A$15000,"*") -> 82 | F8: ='Conventions signées'!G712+Rémunérations!E102 -> 992968 | G8: 0 | H8: 0 | I8: 0 | J8: 720 | K8: 0 | L8: 0 | M8: 0 | N8: 150768 | O8: 0 | P8: 0 | Q8: 0 | R8: 0 | S8: 24 | T8: 0 | U8: 2 | V8: 0 | W8: 17 | X8: 0 | Y8: 39 | Z8: 0 | AA8: 0 | AB8: 720 | AC8: 0 | AD8: 0 | AE8: 150768 | AF8: 0 | AG8: 0 | AH8: 0 | AI8: 12 | AJ8: 0 | AK8: 0 | AL8: 0 | AM8: 0 | AN8: 0 | AO8: 1 | AP8: 1 | AQ8: 5 | AR8: 0 | AS8: 23 | AT8: 0 | AU8: 16 | AV8: 0 | AW8: 2 | AX8: 11 | AY8: 0 | AZ8: 5 | BA8: 0 | BB8: 6 | BC8: 0 | BD8: 0 | BE8: 0 | BF8: 0 | BG8: 0 | BH8: 3 | BI8: 0 | BJ8: 0 | BK8: 0 | BL8: 0 | BM8: 0 | BN8: 0 | BO8: 1 | BP8: 0 | BQ8: 0 | BR8: 0 | BS8: 1 | BT8: 0 | BU8: 1 | BV8: 0 | BW8: 0 | BX8: 0 | BY8: 0 | BZ8: 0 | CA8: 2 | CB8: 2 | CC8: 2 | CD8: 0 | CE8: 0 | CF8: 0 | CG8: 0 | CH8: 0 | CI8: 0 | CJ8: 0 | CK8: 0 | CL8: 0 | CM8: 0 | CN8: 0 | CO8: 0 | CP8: 0 | CQ8: 0 | CR8: 1
B9: TOTAUX | C9: 191665 | D9: 130 | E9: 698 | F9: =SUM(F5:F8) -> 3381344 | G9: 1610 | H9: 207 | I9: 915 | J9: 7895 | K9: 0 | L9: 0 | M9: 0 | N9: 181038 | O9: 9 | P9: 0 | Q9: 124 | R9: 9 | S9: 86 | T9: 0 | U9: 14 | V9: 1 | W9: 259 | X9: 0 | Y9: 196 | Z9: 30226 | AA9: 3046 | AB9: 2760 | AC9: 2400 | AD9: 2399 | AE9: 150768 | AF9: 46 | AG9: 20 | AH9: 55 | AI9: 46 | AJ9: 20 | AK9: 4 | AL9: 2 | AM9: 1 | AN9: 1 | AO9: 1 | AP9: 266 | AQ9: 128 | AR9: 33 | AS9: 28 | AT9: 19 | AU9: 17 | AV9: 15 | AW9: 14 | AX9: 11 | AY9: 10 | AZ9: 10 | BA9: 9 | BB9: 9 | BC9: 8 | BD9: 8 | BE9: 8 | BF9: 7 | BG9: 6 | BH9: 6 | BI9: 6 | BJ9: 6 | BK9: 5 | BL9: 5 | BM9: 5 | BN9: 5 | BO9: 4 | BP9: 3 | BQ9: 3 | BR9: 3 | BS9: 3 | BT9: 3 | BU9: 3 | BV9: 3 | BW9: 2 | BX9: 2 | BY9: 2 | BZ9: 2 | CA9: 2 | CB9: 2 | CC9: 2 | CD9: 1 | CE9: 1 | CF9: 1 | CG9: 1 | CH9: 1 | CI9: 1 | CJ9: 1 | CK9: 1 | CL9: 1 | CM9: 1 | CN9: 1 | CO9: 1 | CP9: 1 | CQ9: 1 | CR9: 1
B12: Période d'étude | C12: 1er semestre 2013 - 1er semestre 2018, soient 5 années et demi
B13: Début de l'analyse | C13: 06/10/2018 18:25:33
B14: Fin de l'analyse | C14: 06/10/2018 18:25:43
C16: Total Montants
B17: 2ème semestre 2017 | C17: ='Avantages perçus'!F135+'Conventions signées'!G703+Rémunérations!E87 -> 1069705
B18: 1er semestre 2018 | C18: ='Avantages perçus'!F136+'Conventions signées'!G704+Rémunérations!E88 -> 422881
B19: 12 derniers mois disponibles | C19: =SUM(C17:C18) -> 1492586
B21: Extrapolation sur la période | C21: =(C19/2)*5.5 -> 4104611.5
D22: % | E22: Cumul%
B23: MYLAN SAS | C23: ='Conventions signées'!G715+Rémunérations!E109 -> 1505493 | D23: =C23/(C$9+F$9) -> 0.4213515835 | E23: =D23 -> 0.4213515835
B24: BIOGARAN | C24: ='Conventions signées'!G717+Rémunérations!E105 -> 584635 | D24: =C24/(C$9+F$9) -> 0.1636253925 | E24: =D24+E23 -> 0.584976976
B25: BIOCODEX | C25: ='Conventions signées'!G716 -> 276685 | D25: 0.07743753234 | E25: =D25+E24 -> 0.6624145083
B26: LEO Pharma | C26: ='Conventions signées'!G718+Rémunérations!E106 -> 275048 | D26: 0.07697937509 | E26: 0.7393938834
B27: LUNDBECK SAS | C27: ='Avantages perçus'!F142+Rémunérations!E110 -> 202768 | D27: 0.05674992702 | E27: 0.7961438104
B28: Lilly France SAS | C28: ='Conventions signées'!G720+Rémunérations!E107 -> 184300 | D28: 0.0515811743 | E28: 0.8477249847
B29: LABORATOIRES GENEVRIER | C29: ='Conventions signées'!G719+Rémunérations!E108 -> 170680 | D29: 0.04776926115 | E29: =D29+E28 -> 0.8954942459
